{"text_format":"1","workbook":"xlsx","n_sheets":2,"sheets":["PARTIDAS","PRESUPUESTO"],"not_rendered":{"charts":0,"images":2,"macros":0,"external_links":0,"defined_names":4,"comments":0,"pivot_tables":0},"unopened":[],"bounds":{"document_bytes":16777216,"sheet_cells":100000,"rows_first":2000,"rows_last":500,"rows_between":2000,"halvings":0,"cell_chars":16384,"cell_head_chars":4096},"cells_cut":0,"cells_raw":0,"read":"whole","date_system":"1900"}

{"sheet":"PARTIDAS","index":0,"n_rows":42,"n_cols":9,"rows_kept":42,"cut":false,"hidden":false,"merged":[[2,0,2,8],[3,0,3,8],[6,0,6,8],[7,0,7,8],[8,0,8,8],[14,2,14,4],[15,2,15,4],[19,2,19,3],[21,2,21,3],[12,0,12,8],[16,2,16,4],[13,2,13,4],[28,2,28,4],[31,2,31,3],[33,2,33,3],[35,0,35,7],[22,0,22,7],[24,0,24,8],[25,2,25,4],[26,2,26,4],[27,2,27,4]]}
[]
[]
["UNIVERSIDAD DEL ISTMO"]
["TEHUANTEPEC   -    IXTEPEC    -    JUCHITÀN"]
[]
[]
["\"REPARACIÓN DE EDIFICIOS DE LABORATORIO DE CÓMPUTO Y SALA DE AUTOACCESO EN LA UNIVERSIDAD DEL ISTMO CAMPUS JUCHITÁN\""]
["DESCRIPCIÓN:"]
["REPARACIÒN DE DOS EDIFICIOS, LABORATORIO DE CÓMPUTO DE 161.12 M² Y SALA DE AUTOACCESO DE 161.12 M², UN TOTAL DE 322.24 M², LOS TRABAJOS CONSTARÁN DE DESMONTAJE DE CANCELERÌA Y EQUIPOS, DESMANTELAMIENTO DE INSTALACIÒN ELÈCTRICA Y DE INTERNET, DEMOLICIÒN DE LOSETA, FIRME DE CONCRETO, MUROS DIVISORIOS Y APLANADOS. CIMENTACIÓN, A BASE DE ZAPATAS AISLADAS DE CONCRETO REFORZADO, PLACA BASE CON PREPARACIÒN PARA RECIBIR ESTRUCTURA DE COLUMNA Y TRABE METALICA, RETIRO DE RELLENO Y ESTABILIZACIÒN DEL SUELO, ALBAÑILERÍA Y ACABADOS: RESTAURACIÒN DE GRIETAS O FISURAS ESTRUCTURALES EN MURO, APLANADO FINO REFORZADO CON MALLA ELECTROSOLDADA 6-6/10-10 EN MUROS, FIRME DE CONCRETO EN INTERIOR DE EDIFICIO Y BANQUETA, LOSETA CERAMICA, JUNTA SE SEPACIÒN ESTRUCTURAL ENTRE MUROS Y CASTILLOS, PINTURA VÌNILICA EN MURO Y PLAFON, PINTURA ESMALTE EN ELEMENTOS METÀLICOS, IMPERMEABILIZANTE TIPO CARPETA DE 4MM. EN AZOTEA. CANCELERÍA DE ALUMINIO DE 3” Y CRISTAL FILTRASOL, PUERTAS DE ACERO PORCELANIZADO, PROTECCIONES PARA VENTANA Y PUERTAS. INSTALACIÓN ELÉCTRICA Y RED DE INTERNET, EQUIPOS DE AIRE ACONDICIONADO DE 3 TON. BANQUETAS EN OBRA EXTERIOR.\n"]
[]
[null,null,"PARTIDAS",null,null,null,null,null,"TOTAL"]
[null,null,null,null,null,null,null,null,"POR PARTIDAS"]
["LABORATORIO DE CÒMPUTO"]
[null,"CAP. 1","PRELIMINARES",null,null,null,null,null,{"$f":"+PRESUPUESTO!F41","v":0}]
[null,"CAP. 2","CIMENTACIÓN",null,null,null,null,null,{"$f":"+PRESUPUESTO!F57","v":0}]
[null,"CAP. 3","ESTRUCTURAS",null,null,null,null,null,{"$f":"+H17","v":0}]
[null,null,"B) ESTRUCTURA METÀLICA",null,null,null,null,{"$f":"+PRESUPUESTO!F64","v":0}]
[null,"CAP. 4","ALBAÑILERÍA Y ACABADOS",null,null,null,null,null,{"$f":"+PRESUPUESTO!F82","v":0}]
[null,"CAP. 5","HERRERÍA Y CARPINTERÍA",null,null,null,null,null,{"$f":"+PRESUPUESTO!F88","v":0}]
[null,"CAP. 6","INSTALACIONES",null,null,null,null,null,{"$f":"+H21","v":0}]
[null,null,"B) INSTALACIÒN ELÈCTRICA E INTERNET",null,null,null,null,{"$f":"+PRESUPUESTO!F112","v":0}]
[null,"CAP. 7","OBRA EXTERIOR",null,null,null,null,null,{"$f":"+PRESUPUESTO!F121","v":0}]
["SUBTOTAL LABORATORIO DE CÒMPUTO",null,null,null,null,null,null,null,{"$f":"+SUM(I14:I22)","v":0}]
[]
["SALA DE AUTOACCESO"]
[null,"CAP. 1","PRELIMINARES",null,null,null,null,null,{"$f":"+PRESUPUESTO!F142","v":0}]
[null,"CAP. 2","CIMENTACIÓN",null,null,null,null,null,{"$f":"+PRESUPUESTO!F158","v":0}]
[null,"CAP. 3","ESTRUCTURAS",null,null,null,null,null,{"$f":"+H29","v":0}]
[null,null,"B) ESTRUCTURA METÀLICA",null,null,null,null,{"$f":"+PRESUPUESTO!F165","v":0}]
[null,"CAP. 4","ALBAÑILERÍA Y ACABADOS",null,null,null,null,null,{"$f":"+PRESUPUESTO!F183","v":0}]
[null,"CAP. 5","HERRERÍA Y CARPINTERÍA",null,null,null,null,null,{"$f":"+PRESUPUESTO!F189","v":0}]
[null,"CAP. 6","INSTALACIONES",null,null,null,null,null,{"$f":"+H33","v":0}]
[null,null,"B) INSTALACIÒN ELÈCTRICA E INTERNET",null,null,null,null,{"$f":"+PRESUPUESTO!F214","v":0}]
[null,"CAP. 7","OBRA EXTERIOR",null,null,null,null,null,{"$f":"+PRESUPUESTO!F222","v":0}]
[]
["SUBTOTAL SALA DE AUTOACCESO",null,null,null,null,null,null,null,{"$f":"+SUM(I26:I35)","v":0}]
[]
[null,null,null,null,null,null,null,"SUBTOTAL ",{"$f":"+I36+I23","v":0}]
[]
[null,null,null,null,null,null,null,"I.V.A. 16%",{"$f":"I38*16%","v":0}]
[]
[null,null,null,null,null,null,null,"TOTAL OBRA",{"$f":"SUM(I38,I40)","v":0}]

{"sheet":"PRESUPUESTO","index":1,"n_rows":228,"n_cols":6,"rows_kept":228,"cut":false,"hidden":false,"merged":[[227,0,227,5],[5,0,5,5],[7,1,15,5],[2,0,2,5],[3,0,3,5],[6,0,6,5],[4,0,4,5],[17,1,17,5]]}
[]
[]
[{"$f":"+PARTIDAS!A3","v":"UNIVERSIDAD DEL ISTMO"}]
[{"$f":"+PARTIDAS!A4","v":"TEHUANTEPEC   -    IXTEPEC    -    JUCHITÀN"}]
[]
[]
[{"$f":"+PARTIDAS!A7","v":"\"REPARACIÓN DE EDIFICIOS DE LABORATORIO DE CÓMPUTO Y SALA DE AUTOACCESO EN LA UNIVERSIDAD DEL ISTMO CAMPUS JUCHITÁN\""}]
["DESCRIPCIÓN:","REPARACIÒN DE DOS EDIFICIOS, LABORATORIO DE CÓMPUTO DE 161.12 M² Y SALA DE AUTOACCESO DE 161.12 M², UN TOTAL DE 322.24 M², LOS TRABAJOS CONSTARÁN DE DESMONTAJE DE CANCELERÌA Y EQUIPOS, DESMANTELAMIENTO DE INSTALACIÒN ELÈCTRICA Y DE INTERNET, DEMOLICIÒN DE LOSETA, FIRME DE CONCRETO, MUROS DIVISORIOS Y APLANADOS. CIMENTACIÓN, A BASE DE ZAPATAS AISLADAS DE CONCRETO REFORZADO, PLACA BASE CON PREPARACIÒN PARA RECIBIR ESTRUCTURA DE COLUMNA Y TRABE METALICA, RETIRO DE RELLENO Y ESTABILIZACIÒN DEL SUELO, ALBAÑILERÍA Y ACABADOS: RESTAURACIÒN DE GRIETAS O FISURAS ESTRUCTURALES EN MURO, APLANADO FINO REFORZADO CON MALLA ELECTROSOLDADA 6-6/10-10 EN MUROS, FIRME DE CONCRETO EN INTERIOR DE EDIFICIO Y BANQUETA, LOSETA CERAMICA, JUNTA SE SEPACIÒN ESTRUCTURAL ENTRE MUROS Y CASTILLOS, PINTURA VÌNILICA EN MURO Y PLAFON, PINTURA ESMALTE EN ELEMENTOS METÀLICOS, IMPERMEABILIZANTE TIPO CARPETA DE 4MM. EN AZOTEA. CANCELERÍA DE ALUMINIO DE 3” Y CRISTAL FILTRASOL, PUERTAS DE ACERO PORCELANIZADO, PROTECCIONES PARA VENTANA Y PUERTAS. INSTALACIÓN ELÉCTRICA Y RED DE INTERNET, EQUIPOS DE AIRE ACONDICIONADO DE 3 TON. BANQUETAS EN OBRA EXTERIOR."]
[]
[]
[]
[]
[]
[]
[]
[]
[]
[null,"PRESUPUESTO DE OBRA"]
["CLAVE","CONCEPTO","UNIDAD","CANTIDAD","P.U.","IMPORTE"]
[null,"LABORATORIO DE CÒMPUTO"]
["CAPÍTULO 1"," PRELIMINARES"]
["UI-PRE-002","RETIRO DE CANCELERÍA DE ALUMINIO DE 3\" CON CRISTAL FILTRASOL DE 6 mm. EN FACHADAS. INCLUYE: ACARREO DENTRO DE LA OBRA Y RESGUARDO EN BODEGA, LIMPIEZA DE LOS PERFILES, MANO DE OBRA, EQUIPO Y HERRAMIENTA.","m²",9.92,null,{"$f":"ROUND(D22*E22,2)","v":0}]
["UI-PRE-003","RETIRO DE PUERTA CON TABLERO MULTIPANEL DE 2.50X1.00 m., CON MARCO Y CONTRAMARCO DE ALUMINIO DE 2\", CHAPA PHILLIPS No. 55O-AN, INCLUYE: ACARREO DENTRO DE LA OBRA PARA RESGUARDARLO EN BODEGA.","pza.",2,null,{"$f":"ROUND(D23*E23,2)","v":0}]
["UI-PRE-005","RETIRO DE TEJA DE BARRO DE 20X15 cm. ASENTADO CON MEZCLA DE CEMENTO-ARENA PROP.1:3, EN AZOTEA, CON RECUPERACIÓN. INCLUYE: MANO DE OBRA, ACARREO DEL MATERIAL DENTRO DE LA OBRA (1 km.), APILADO DEL MATERIAL, HERRAMIENTA, LIMPIEZA DEL ÀREA DE TRABAJO Y TODO LO NECESARIO PARA SU BUEN FUNCIONAMIENTO.","m²",137.28,null,0]
["UI-PRE-006","RETIRO DE IMPERMEABILIZANTE EXISTENTE CON ESPESOR DE 4 mm. INCLUYE: LIMPIEZA CON CEPILLO DE ALAMBRE, ANDAMIOS, MANO DE OBRA, HERRAMIENTA Y RETIRO DEL MATERIAL SOBRANTE FUERA DE LA OBRA (1 km.).","m²",135.43,null,0]
["UI-PRE-007","DESMONTAJE DE UNIDAD DE AIRE ACONDICIONADO: COMPRESOR Y MINI SPLIT, CON PESO APROXIMADO DE 130 kg., (CAPACIDAD 2-3 Ton. APROX.), HASTA UNA ALTURA DE 6 m., INCLUYE: DESCONEXIÓN DE DUCTOS DE REFRIGERACIÒN, TUBERÍAS DE AGUA, DESCONEXIÓN DE INSTALACIÓN ELÉCTRICA, ACARREOS HASTA EL ALMACÉN DE LA OBRA, MANO DE OBRA, GRÚA, EQUIPO Y HERRAMIENTA.","pza.",2,null,0]
["UI-PRE-009","TRAZO Y NIVELACIÓN MANUAL PARA ESTABLECER EJES, BANCO DE NIVEL Y REFERENCIAS, INCLUYE: MATERIALES, MANO DE OBRA, EQUIPO Y HERRAMIENTA.","m²",188.07,null,0]
["UI-PRE-014","DESPALME DE TERRENO NATURAL A MANO, ESPESOR PROMEDIO DE 20 cm., INCLUYE: EQUIPO, MANO DE OBRA,  CARGA Y ACARREO DEL MATERIAL NO ÚTIL FUERA DE LA OBRA A 1 km.","m²",68.489999999999995,null,0]
["UI-PRE-016","DEMOLICIÓN DE MURO 14 cm. DE ESPESOR DE TABIQUE ROJO, A MANO Y MARRO. INCLUYE: CADENAS, CASTILLOS Y APLANADO DE MEZCLA POR AMBAS CARAS, MANO DE OBRA, ANDAMIOS, HERRAMIENTA, ACARREO DENTRO DE LA OBRA 1 km., LIMPIEZA DEL ÀREA DE TRABAJO.","m²",22.74,null,0]
["UI-PRE-023","DEMOLICIÓN DE PISO DE LOSETA CON ESPESOR DE 6 mm. A 20 mm., INCLUYE EL RETIRO DEL PEGAZULEJO O MEZCLA DE CEMENTO-PEGAZULEJO-ARENA, ACARREO DENTRO DE LA OBRA 1 km., LIMPIEZA DEL ÀREA DE TRABAJO, MANO DE OBRA, EQUIPO Y HERRAMIENTA.","m²",85.04,null,0]
["UI-PRE-024","DEMOLICIÓN DE APLANADO DE MEZCLA CEM-ARENA, EN MURO CON ESPESOR DE 2 cm. PROMEDIO, INCLUYE: ANDAMIOS, ACARREO DENTRO DE LA OBRA 1 km., LIMPIEZA DEL ÀREA DE TRABAJO, MANO DE OBRA, EQUIPO Y HERRAMIENTA.","m²",98.13,null,0]
["UI-PRE-029","ACARREO EN CAMIÓN km. SUBSECUENTES DEL MATERIAL NO UTIL FUERA DE LA OBRA, A BANCO ELEGIDO POR LA CONTRATISTA Y AUTORIZADO POR EL MUNICIPIO.","m³/km",925.24,null,0]
["UI-PRE-035","DEMOLICIÓN DE PISO DE 10 cm. DE ESPESOR DE CONCRETO ARMADO CON MALLA DE REFUERZO, A MANO CON CUÑA Y MARRO, INCLUYE: EQUIPO DE CORTE, ROMPEDORA, MANO DE OBRA, EQUIPO, HERRAMIENTA, ACARREO DENTRO DE LA OBRA 1 km., LIMPIEZA DEL ÀREA DE TRABAJO.","m²",104.57,null,0]
["UI-PRE-036","DEMOLICIÓN DE GUARNICIÓN DE 15X20X40 cm. DE CONCRETO SIMPLE, A MANO, INCLUYE: ACARREO DE MATERIAL PRODUCTO DE DEMOLICIÓN DENTRO DE LA OBRA A 1km., LIMPIEZA DEL ÁREA Y TODO LO NECESARIO PARA LA REALIZACIÓN DEL TRABAJO.","ml.",5.2,null,0]
["UI-PRE-037","RETIRO DE ADOQUÍN CON RECUPERACIÒN. INCLUYE: LIMPIEZA DEL ADOQUIN, MANO DE OBRA, RESGUARDO DEL MATERIAL, HERRAMIENTA, LIMPIEZA DEL AREA DE TRABAJO Y TODO LO NECESARIO PARA SU BUEN FUNCIONAMIENTO. ","m²",8.32,null,0]
["UI-PRE-038","DESMONTAJE DE PROTECCIÓN METÁLICA, INCLUYE: EQUIPO DE CORTE OXI-ACETILENO, ACARREO HASTA EL ALMACÉN DE LA OBRA, LIMPIEZA, MANO DE OBRA, EQUIPO Y HERRAMIENTA.","m²",18.32,null,0]
["UI-PRE-039","DESMONTAJE DE SALIDA DE CONTACTO Y RED DE INTERNET VISIBLE, A BASE TUBERÍA PVC CONDUIT Y/O CANALETA DE PVC. INCLUYE: RETIRO DE CABLEADO, PLACAS, CONTACTOS, CONECTOR RJ45, CANALETAS, CAJAS REGISTRO Y SOPORTERÍA, CON RECUPERACIÓN DEL MATERIAL Y ACARREO AL ALMACÉN DEFINIDO POR LA UNISTMO, MANO DE OBRA, ANDAMIOS, EQUIPO Y HERRAMIENTA.","sal.",33,null,0]
["UI-PRE-040","DESMONTAJE CON RECUPERACIÓN DE LUMINARIA TIPO INDUSTRIAL DE 0.30X1.22m., HASTA UNA ALTURA DE 4 m. INCLUYE: DESCONEXIÓN, RETIRO DE SOPORTERIA, ANDAMIOS, ACARREOS HASTA LA BODEGA, MANO DE OBRA, EQUIPO Y HERRAMIENTA.","pza.",12,null,0]
["UI-PRE-041","DESMONTAJE DE INTERRUPTOR DE SEGURIDAD DE 3X100 Amp. PARA ATORNILLA O ENCHUFABLE. INCLUYE: DESENERGIZACIÓN, DESCONEXIÓN DE TUBERÍAS Y CABLES, MANO DE OBRA, EQUIPO Y HERRAMIENTA.","pza.",1,null,0]
["UI-PRE-042","DESMONTAJE DE INTERRUPTOR TERMOMAGNÉTICO DE 1 A 3 POLOS ATORNILLABLE O ENCHUFABLE CON RECUPERACIÒN. INCLUYE: MANO DE OBRA, EQUIPO Y HERRAMIENTA, ACARREO A BODEGA EN OBRA.","pza.",17,null,0]
[null,"Total  CAPÍTULO 1.- PRELIMINARES",null,null,null,{"$f":"SUM(F22:F40)","v":0}]
["CAPÍTULO 2","CIMENTACIÓN"]
["UI-CIM-005","EXCAVACIÒN DE CEPA (TIPO CAJÓN) POR MEDIOS MANUIALES, PARA CIMENTACIÓN DE EDIFICIOS, EN MATERIAL TIPO \"B\" A UNA PROFUNDIDAD DE 0 A 2.0 m., INCLUYE: AFINE DE TALUD, ACARREO DENTRO Y FUERA DE LA OBRA DEL MATERIAL NO UTILIZADO PRODUCTO DE EXCAVACIÓN A 1 km. FUERA DE LA OBRA, HERRAMIENTA Y TODO LO NECESARIO PARA SU CORRECTA EJECUCIÓN.","m³",130.5,null,{"$f":"ROUND(D43*E43,2)","v":0}]
["UI-CIM-007","AFINE, NIVELACIÓN Y COMPACTACIÓN DEL FONDO DE LA EXCAVACIÓN CON BAILARINA. INCLUYE: MATERIALES, MANO DE OBRA, EQUIPO Y HERRAMIENTA.","m²",93.22,null,0]
["UI-CIM-008","PLANTILLA DE 5 cm. DE ESPESOR DE CONCRETO HECHO EN OBRA DE F'c=100 kg./cm2. INCLUYE: PREPARACIÓN DE LA SUPERFICIE, NIVELACIÓN, MAESTREADO, COLADO, MANO DE OBRA, EQUIPO Y HERRAMIENTA.","m²",9.06,null,0]
["UI-CIM-010","ACERO DE REFUERZO  EN CIMENTACIÓN CON ALAMBRÓN DEL #2 F´y=2530 kg/cm2, INCLUYE: SUMINISTRO, HABILITADO, ARMADO, TRASLAPES, GANCHOS (VER DETALLES ADICIONALES DE REFUERZO EN PLANOS ESTRUCTURALES) Y DESPERDICIOS.","kg.",20,null,0]
["UI-CIM-011","ACERO DE REFUERZO EN CIMENTACIÓN CON VARILLA DEL #3 F´y=4200 kg/cm2. INCLUYE: SUMINISTRO, HABILITADO, ARMADO, TRASLAPES, GANCHOS, ESCUADRAS (VER DETALLES ADICIONALES DE REFUERZO EN PLANOS ESTRUCTURALES), SILLETAS, DESPERDICIOS.","kg.",100.35,null,0]
["UI-CIM-012","ACERO DE REFUERZO EN CIMENTACIÓN CON VARILLA #4 F´y=4200 kg/cm2.  INCLUYE: SUMINISTRO, HABILITADO, ARMADO, TRASLAPES, GANCHOS, ESCUADRAS (VER DETALLES ADICIONALES DE REFUERZO EN PLANOS ESTRUCTURALES), SILLETAS, DESPERDICIOS.","kg.",36.81,null,0]
["UI-CIM-013","ACERO DE REFUERZO EN CIMENTACIÓN CON VARILLA #5 F´y=4200 kg/cm2.  INCLUYE: SUMINISTRO, HABILITADO, ARMADO, TRASLAPES, GANCHOS, ESCUADRAS (VER DETALLES ADICIONALES DE REFUERZO EN PLANOS ESTRUCTURALES), SILLETAS, DESPERDICIOS.","kg.",146.02000000000001,null,0]
["UI-CIM-018","CIMBRA EN CIMENTACIÓN, ACABADO COMÚN. INCLUYE: MATERIALES, ACARREOS, CORTES, HABILITADOS, CIMBRADO, DESCIMBRADO, DESMOLDANTE, MANO DE OBRA, EQUIPO, HERRAMIENTA Y TODO LO NECESARIO PARA SU CORRECTA EJECUCIÓN.","m²",12.62,null,0]
["UI-CIM-021","CONCRETO HECHO EN OBRA F'c=250 kg/cm2 EN CIMENTACIÓN, T.M.A. 3/4\". INCLUYE: ACARREO, COLOCADO, VIBRADO, CURADO POR 7 DÍAS Y PRUEBAS DE LABORATORIO.","m³",2.25,null,0]
["UI-CIM-035","RELLENO CON MATERIAL DE BANCO, COMPACTADO CON BAILARINA AL 95% DE SU P.V.S. PRUEBA PROCTOR, ADICIONANDO AGUA. INCLUYE: SUMINISTRO DE MATERIALES, ACARREOS, MANO DE OBRA, MAQUINARÌA, EQUIPO, HERRAMIENTA Y TODO LO NECESARIO PARA SU CORRECTA EJECUCIÓN.","m³",81.19,null,0]
["UI-CIM-037","RELLENO EN CAPAS DE 20 cm. DE ESPESOR CON GRAVA CONTROLADA DE 38 mm. COMPACTADA. INCLUYE: SUMINISTRO DE MATERIALES, ACARREOS, MANO DE OBRA, MAQUINARÌA, EQUIPO, HERRAMIENTA Y TODO LO NECESARIO PARA SU CORRECTA EJECUCIÓN.","m³",18.64,null,0]
["UI-CIM-038","PEDRAPLÉN DE 30 cm. DE ESPESOR CONFORMADO CON PIEDRA BOLA DE 3\" HASTA 7\", COMPACTADA CON EQUIPO MECÀNICO (BAILARINA). INCLUYE: SUMINISTRO DE MATERIALES, ACARREOS, MANO DE OBRA, MAQUINARÌA, EQUIPO, HERRAMIENTA Y TODO LO NECESARIO PARA SU CORRECTA EJECUCIÓN.","m³",27.97,null,0]
["UI-CIM-042","PLACA BASE DE ACERO A-36 DE 5/8\" (16 mm.) DE 30X35 cm. CON 8 ANCLAS DE REDONDO DE 3/4\" Y UN DESARROLLO DE 90 cm. CON ROSCA EN UN EXTREMO. INCLUYE: TUERCAS Y RONDANAS, TRAZO, MATERIALES, CORTES, EQUIPO DE CORTE, FIJACIÓN, ESTRIBO DE VARILLA DE 3/8\" PARA APOYO, MANO DE OBRA, EQUIPO Y HERRAMIENTA.","pza.",2,null,0]
["UI-CIM-046","PLACA DE ACERO A-36 DE 3/8\" (9.5 mm.) DE 10X35 cm. (CARTABÓN), SOLDADA A PLACA BASE PL1 DE 5/8”, DE ACUERDO A DETALLE DE PLANO ESTRUCTURAL. INCLUYE: TRAZO, MATERIALES, CORTES, EQUIPO DE CORTE, FIJACIÓN, MANO DE OBRA, EQUIPO Y HERRAMIENTA.","pza.",4,null,0]
[null,"Total  CAPÍTULO 2.- CIMENTACIÓN",null,null,null,{"$f":"SUM(F43:F56)","v":0}]
["CAPÍTULO 3","ESTRUCTURAS"]
["B)","ESTRUCTURA METÀLICA"]
["UI-ESTM-001","ESTRUCTURA METÁLICA, PERFIL IPR 10\"X 5 3/4\" (32.8 kg/m) EN COLUMNA CM1. INCLUYE: ELEVACIONES, SUMINISTRO DE MATERIALES, ACARREOS, CORTES, TRAZO, HABILITADO, SOLDADURA, ANCLAJES Y/O FIJACIÒN EN PLACA BASE, APLICACIÓN DE PINTURA PROMAX PRIMARIO EPÓXICO MARCA SHERWIN WILLIAMS, SIMILAR O SUPERIOR, MONTAJE, MANO DE OBRA, MAQUINARIA, EQUIPO, HERRAMIENTA Y TODO LO NECESARIO PARA SU CORRECTA EJECUCIÓN.","ml.",5.4,null,{"$f":"ROUND(D60*E60,2)","v":0}]
["UI-ESTM-020","ESTRUCTURA METÁLICA, PERFIL IPR 10\"X 5 3/4\" (32.8 kg/m) EN TRABE TM1. INCLUYE: ELEVACIONES, SUMINISTRO DE MATERIALES, ACARREOS, CORTES, TRAZO, HABILITADO, SOLDADURA, ANCLAJES Y/O FIJACIÒN EN PLACA DE CONEXIÒN Y COLUMNA CM1, APLICACIÓN DE PINTURA PROMAX PRIMARIO EPÓXICO MARCA SHERWIN WILLIAMS, SIMILAR O SUPERIOR, MONTAJE, MANO DE OBRA, MAQUINARIA, EQUIPO, HERRAMIENTA Y TODO LO NECESARIO PARA SU CORRECTA EJECUCIÓN.","ml.",7.2,null,0]
["UI-ESTM-050","PLACA DE CONEXIÒN TM1-TC, A BASE DE SOLERA DE ACERO A-36 DE 4\" X 1/2\" (13 mm.) DE 25 cm. DE LONGITUD, CON 2 CONECTORES DE VARILLA CORRUGADA DE 1/2\" Y 14 cm. DE LONGITUD (VER DETALLE EN PLANO). INCLUYE: TRAZO, ALINEACIÒN, PERFORACIÒN DE ELEMENTO DE CONCRETO CON TALADRO GUÌA DE 5/8\", RESINA EPOXICA FISCHER 390 EM DE ACUERDO A LAS ESPECIFICACIONES DEL PLANO ESTRUCTURAL, MATERIALES, CORTES, EQUIPO DE CORTE, FIJACIÓN, MANO DE OBRA, EQUIPO Y HERRAMIENTA.","pza.",12,null,0]
["UI-ESTM-051","PLACA REFUERZO (ATIEZADORES) A BASE DE SOLERA DE 2 1/2\" X 1/4\" DE 24 cm. DE LONGITUD, SOLDADA AL PERFIL METÀLICO COLUMNA O TRABE (VER DETALLE EN PLANO). INCLUYE: TRAZO, ALINEACIÒN, MATERIALES, CORTES, EQUIPO DE CORTE, FIJACIÓN, MANO DE OBRA, EQUIPO Y HERRAMIENTA.","pza.",8,null,0]
[null,"Total  CAPÍTULO 3.- ESTRUCTURAS",null,null,null,{"$f":"SUM(F60:F63)","v":0}]
["CAPÍTULO 4","ALBAÑILERIA Y ACABADOS"]
["UI-ALB-001","CADENA DE DESPLANTE DE CONCRETO  F'c=200 kg/cm2 DE 15X30 cm. ARMADO CON 4 VARILLAS No.4 Y ESTRIBOS DEL No.2, 1@5, 8@10 Y @ 17 cm. ANCLADAS A LA CIMENTACIÒN. INCLUYE: HABILITADO, CIMBRADO, COLADO, VIBRADO, DESCIMBRADO, CRUCES DE VARILLA Y ANCLAJES,  CURADO, MANO DE OBRA, HERRAMIENTAS Y MATERIALES. ","ml.",13.22,null,{"$f":"ROUND(D66*E66,2)","v":0}]
["UI-ALB-016","CADENA INTERMEDIA O DE CERRAMIENTO DE CONCRETO  F'c=200 kg/cm2 DE 15X30 cm. ARMADO CON 4 VARILLAS No.4 Y ESTRIBOS DEL No.2, 1@5, 8@10 Y @ 17 cm. INCLUYE: HABILITADO, CIMBRADO, COLADO, VIBRADO, DESCIMBRADO, CRUCES DE VARILLA Y ANCLAJES, CURADO, MANO DE OBRA, HERRAMIENTAS Y MATERIALES.","ml.",13.22,null,0]
["UI-ALB-025","CASTILLO K1 Ó KS1 DE CONCRETO  F´c=200kg/cm2 DE 15X20 cm. DE SECCIÓN, ARMADO CON 4 VARILLAS DEL #3 F'y=4200kg/cm2 Y ESTRIBOS DEL #2, 6 @ 10, @ 20 cm. INCLUYE: CIMBRA COMÚN, DESCIMBRADO, CRUCE DE VARILLAS, ANCLAJE, ESCUADRAS, MANO DE OBRA, HERRAMIENTA Y MATERIALES.","ml.",10.8,null,0]
["UI-ALB-040","MURO DE 14 cm. DE ESPESOR, CON TABIQUE DE BARRO ROJO RECOCIDO DE 6X14X28 cm., ACABADO COMÚN, ASENTADO CON MORTERO CEM-ARENA 1:4. INCLUYE: NIVELADO, PLOMEADO, ANDAMIOS, ELEVACIONES Y TODO LO NECESARIO PARA SU CORRECTA ELABORACIÓN.","m²",15.69,null,0]
["UI-ALB-050","FIRME DE CONCRETO F`c=200 kg/cm2 DE 10 cm. DE ESPESOR CON MALLA ELECTROSOLDADA 6X6/10-10 REFORZADO, ACABADO RÚSTICO PARA RECIBIR LOSETA. INCLUYE: NIVELACIÓN Y COMPACTACIÓN, MATERIALES,CIMBRADO, COLADO, MANO DE OBRA, EQUIPO Y HERRAMIENTA.","m²",85.04,null,0]
["UI-ALB-055","PISO DE CONCRETO F'c=200 kg/cm2, DE 10 cm. DE ESPESOR, REFORZADA CON MALLA ELECTROSOLDADA DE 6X6/10-10, ACABADO FINO RAYADO CON BOCHA DE PELO. INCLUYE; COLADO EN SECCIONES, COMPACTACION Y PREPARACIÓN DE LA SUPERFICIE A COLAR, NIVELACIÓN, MAESTREADO, ACABADO CON VOLTEADOR, TRASLAPES DE MALLA DE 15 cm., CURADO DURANTE 7 DÍAS (3 VECES AL DÍA) COMO MÍNIMO.","m²",18.45,null,0]
["UI-ALB-061","CONSTRUCCIÓN DE ESTRADO DE 6.00 X 1.42 m. Y 30 cm. DE PERALTE, CON UN RODAPIE DE 15x40 cm., ARMADO CON 6 VARILLAS DE 3/8” Y ESTRIBOS DEL N°. 2 @17 cm.; PLANTILLA DE CONCRETO SIMPLE F'c=100 kg/cm2 DE 5 cm. DE ESPESOR, RELLENO CON MATERIAL DE BANCO COMPACTADO POR MEDIOS MANUALES, FIRME DE CONCRETO F'c=200 kg/cm2 DE 10 cm. DE ESPESOR, REFORZADO CON MALLA ELECTROSOLDADA 6X6/10-10, ACABADO RÚSTICO PARA RECIBIR LOSETA, ANCLADO A MURO CON CONECTOR DE VARILLA CORRUGADA 1/2\" @25cm., FORJADO DE NARIZ CON CIMBRA APARENTE DE 9.5X9 cm. CON ACABADO PULIDO, REFORZADO CON 1 VARILLA DE 3/8\".","pza.",1,null,0]
["UI-ALB-065","SEPARACIÓN ENTRE CASTILLOS-COLUMNAS-MUROS CON PLACA DE POLIESTIRENO DE 2.5 cm., CANAL DE LÁMINA CALIBRE 18, CON 2 TAQUETES DE EXPANSIÓN DE DIÁMETRO 1/4\"X3\" @ 50 cm. VERTICALES. INCLUYE: MANO DE OBRA, HERRAMIENTA, MATERIALES, Y TODO LO NECESARIO PARA SU CORRECTA EJECUCIÓN.","ml.",10.9,null,0]
["UI-ALB-070","APLANADO ACABADO FINO CON CEMENTO-ARENA PROP. 1:4 A PLOMO Y REGLA DE 2 A 2.5 cm. DE ESPESOR, PREPARACIÓN DE LA SUPERFICIE POR APLANAR (PICADO Y/O HUMEDECIDO DEPENDIENDO DE LA SUPERFICIE), CURADO Y DEJANDO PARTIR EL REPELLADO, ACABADO CON FLOTA O PLANA DE MADERA HASTA OBTENER TEXTURA UNIFORME, SIN OQUEDADES, RAYONES, PROTUBERANCIAS. INCLUYE: MATERIAL, MANO DE OBRA, ANDAMIOS, REMATES Y ARISTAS A REGLA, BOQUILLAS Y RECORTES DE APLANADO PARA ZOCLO.","m²",47.54,null,0]
["UI-ALB-071","APLANADO FINO EN MUROS DE 3 A 4 cm. DE ESPESOR, CON MEZCLA DE CEMENTO-ARENA 1:3 Y FIBRAS POLIMERICAS EN PROPORCIÒN 1 BOLSA POR 1 M3, REFORZADO CON MALLA ELECTROSOLDADA 6X6-10/10 FIJADA CON GRAPAS DE VARILLAS DEL No.2 Y/O TAQUETES EXPANSIVOS DE 2 1/2\"X3/16\"  @ 45 cm. A TRES BOLILLO, A PLOMO Y REGLA, SUPERFICIE CON TERMINADO UNIFORME, INCLUYE: ANDAMIOS A CUALQUIER ALTURA, PREPARACIÓN   DE  LA  SUPERFICIE   POR  APLANAR   (PICADO   Y/O HUMEDECIDO   DEPENDIENDO   DE  LA  SUPERFICIE),    CURADO  Y  DEJANDO  PARTIR  EL  REPELLADO, ACABADO CON FLOTA HASTA OBTENER TEXTURA UNIFORME, MATERIAL, MANO DE OBRA, ANDAMIOS, REMATES Y ARISTAS A REGLA, BOQUILLAS Y RECORTES DE APLANADO PARA ZOCLO.","m²",96.2,null,0]
["UI-ALB-076","SUMINISTRO Y COLOCACIÓN DE LOSETA CERAMICA ANTIDERRAPANTE, DE PRIMERA CALIDAD, MARCA INTERCERAMIC MODELO SAYULITA RIVIERA GREY DE 33X33 cm. O SIMILAR, ASENTADA CON ADHESIVO GRIS MCA. PORCELANITE-CEMENTO-ARENA 1:1/2:3, JUNTA DE 5 mm. INCLUYE: COLOCACIÓN DE JUNTA BACKER ROD (COLA DE RATA) EN TODO EL PERÍMETRO, TERMINADO CON SELLADOR DE POLIURETANO DURETAN, EMBOQUILLADO CON SELLADOR, COLOR A ELEGIR, CORTES RECTOS Y A 45º, REMATES, DESPERDICIOS, LIMPIEZA DEL ÁREA DE TRABAJO Y RETIRO DE SOBRANTES FUERA DE LA OBRA.","m²",92.95,null,0]
["UI-ALB-080","APLICACIÓN DE PINTURA 100% ACRILICA VINIMEX MCA. COMEX, SIMILAR O SUPERIOR, ACABADO MATE, BASE AGUA, EN MUROS, COLUMNAS, TRABES Y PLAFÓN. COLOR BLANCO OSTIÓN Y BLANCO AMANECER EN INTERIORES Y COLOR SIMILAR A EDIFICIOS EXISTENTES EN EXTERIOR, DENSIDAD DE 1.025 - 1.38 g/ml., SOLIDOS EN PESO 50% MINIMO, APLICADO SOBRE UNA CAPA DE SELLADOR, TRABAJO TERMINADO A DOS MANOS. INCLUYE:  PREPARACIÓN DE LA SUPERFICIE CON SELLADOR ENTINTABLE COLOR BLANCO MCA.COMEX, REBABEADO, BOQUILLAS, RESANES Y PLASTE NECESARIO, ELEVACIONES, TRAZO, MATERIAL, HERRAMIENTA, MANO DE OBRA Y LIMPIEZA DEL ÁREA DE TRABAJO.","m²",384.71,null,0]
["UI-ALB-081","SUMINISTRO Y APLICACIÓN DE PINTURA VINÍLICA VINIMEX, MCA. COMEX, SIMILAR O SUPERIOR, ACABADO SATINADO LAVABLE, EN ZOCLO DE CONCRETO CON ACABADO APARENTE O APLANADO, DE 10 cm. DE ESPESOR COLOR INDICADO EN OBRA. INCLUYE: TRAZO, BOQUILLAS, MATERIALES, EQUIPO, MANO DE OBRA Y LIMPIEZA DEL ÁREA DE TRABAJO.","m²",90.47,null,0]
["UI-ALB-085","APLICACIÒN DE  2 MANOS DE PINTURA PROMAX ACABADO EPÓXICO MARCA SHERWIN WILLIAMS, SIMILAR O SUPERIOR, SOBRE SUPERFICIES METÁLICAS A DOS MANOS, APLICADA CON COMPRESOR. INCLUYE: LIMPIEZA DEL METAL PARA RETIRO DE GRASA, PREPARACIÓN DE LA SUPERFICIE, APLICACIÒN DE PRIMER ANTICORROSIVO, MATERIALES, MANO DE OBRA, EQUIPO, HERRAMIENTA Y LIMPIEZA DEL ÀREA DE TRABAJO.","m²",17.420000000000002,null,0]
["UI-ALB-090","SUMINISTRO Y COLOCACIÓN DE IMPERMEABILIZANTE PREFABRICADO EN LOSA DE AZOTEA, ELABORADO CON ASFALTO MODIFICADO APP DE 4.00 mm. DE ESPESOR, REFORZADO INTERNAMENTE CON UNA MEMBRANA DE REFUERZO DE POLIÉSTER 180 gr/m2. TERMINADO EN GRAVILLA MINERALIZADA COLOR ROJO.  INCLUYE: PREPARACIÓN DE LA SUPERFICIE: LIMPIEZA, SELLADO DE POROS, CALAFATEO DE GRIETAS Y CHAFLANES CON CEMENTO PLÁSTICO; PRIMARIO, MATERIALES, ELEVACIÓN DE MATERIALES HASTA EL LUGAR DE SU UTILIZACIÓN,  REMATE DE TRASLAPES, RETOQUE DE UNIONES Y PERIFERIA, TRASLAPES MÍNIMOS DE 10 cm., EQUIPO Y GAS BUTANO, MANO DE OBRA ESPECIALIZADA, ACARREOS DENTRO Y FUERA DE OBRA, LIMPIEZA DEL ÁREA DE TRABAJO, GARANTÍA POR ESCRITO DE 5 AÑOS O SUPERIOR POR PARTE DEL FABRICANTE EN MATERIAL Y MANO DE OBRA.","m²",135.43,null,0]
["UI-ALB-100","RESTAURACIÓN DE GRIETAS O FISURAS ESTRUCTURALES EN MURO, APLICANDO EL SISTEMA UNECRETO EPOXI ESTRUCTURAL DE IMPERQUIMIA. INCLUYE: LIMPIEZA DE LA SUPERFICIE, LIMPIEZA DE GRIETA CON AIRE A PRESIÓN, BARRENOS DE 1/4\" A 3/8\" A CADA 15 Ò 20 CM. SOBRE LA GRIETA, COLOCACIÓN DE PUERTO DE INYECCIÓN UREFOAM INYECTOR BANG EN CADA BARRENO, LIMPIEZA DEL INTERIOR DE LOS PUERTOS UNA VEZ COLOCADOS CON AIRE A PRESIÓN, APLICACIÓN DE RESANADOR EPÓXIDO EN PASTA GUARDQUIM EPOXI RESANADOR TIXOTROPICO SOBRE LA GRIETA, INYECCIÓN DE UNECRETO EPOXI ESTRUCTURAL CON PISTOLA DE CALAFATEO O EQUIPO NEUMÁTICO DE ACUERDO A LAS ESPECIFICACIONES DEL PRODUCTO. INCLUYE: MATERIAL, MANO DE OBRA, HERRAMIENTA Y EQUIPO.","ml.",40,null,0]
[null,"Total  CAPÍTULO 4: ALBAÑILERIA Y ACABADOS",null,null,null,{"$f":"SUM(F66:F81)","v":0}]
["CAPÍTULO 5","HERRERÍA"]
["UI-HYC-001","SUMINISTRO Y COLOCACIÒN DE PUERTA DE ACERO PORCELANIZADO SOBRE LAMINA CAL. 24 DE 1.00 X 2.47 m., VER ESPECIFICACIONES DE PLANO, INCLUYE; PERFIL TUBULAR CUADRADO GALVANIZADO CALIBRE 20 DE 1 1/4\" X 3/4\", PLACA DE CARTÓN EN FORMA DE PANAL DE 1 1/4\" (HONEY COMB), ADHESIVO DE CONTACTO DE PRIMERA CALIDAD, MOLDURA PERIMETRAL DE ALUMINIO ANODIZADO NATURAL DE 1 1/2\" CON CORTES A 45°, BISAGRAS DE ACERO INOXIDABLE, CHAPA PHILLIPS 550, SIMILAR O SUPERIOR, Y TODO LO NECESARIO PARA SU BUEN FUNCIONAMIENTO.","pza.",2,null,{"$f":"ROUND(D84*E84,2)","v":0}]
["UI-HYC-020","SUMINISTRO Y COLOCACIÓN DE VENTANA DE ALUMINIO ANODIZADO NATURAL DE 3\" LÍNEA PESADA, SERÁ CORREDIZA, DE PROYECCIÓN O DE TIPO GUILLOTINA SEGÚN DETALLES Y ESPECIFICACIONES DEL PLANO, CON CRISTAL FILTRASOL DE 6mm. EN CANCELERÍA EXTERIOR Y CRISTAL CLARO DE 6mm. O ACRÍLICO ESMERILADO BLANCO DE 6mm. EN CANCELERÍA INTERIOR, TORNILLOS, TAQUETES Y REMACHES PARA FIJAR LAS HOJAS, SELLADO CON SILICÓN Y SELLADOR ACRÍLICO EN MARCOS. INCLUYE: JALADERAS, SEGUROS DE EMBUTIDO, PASADORES, BISAGRAS, CARRETILLAS, EMPAQUE DE VINIL, FELPA, MANO DE OBRA, EQUIPO, HERRAMIENTA Y TODO LO NECESARIO PARA SU BUEN FUNCIONAMIENTO.","m²",9.92,null,0]
["UI-HYC-030","PROTECCIÓN PARA VENTANA, A BASE DE ÀNGULO ESTRUCTURAL DE 3/4\"X1/8\" PARA MARCO Y CUADRADOS DE 1/2\" A CADA 15 cm. EN AMBOS SENTIDOS EN TRES BOLILLO, SOLDADOS AL MARCO, FIJADO A VARILLA EXISTENTE. INCLUYE: RESANE, MATERIALES, ACARREOS, CORTES, DESPERDICIOS, SOLDADURA, FIJACIÓN, APLICACIÓN DE PINTURA DE ESMALTE, MANO DE OBRA, EQUIPO Y HERRAMIENTA.","m²",9.92,null,0]
["UI-HYC-035","SUMINISTRO Y COLOCACIÓN DE PROTECCIÒN PARA PUERTA ABATIBLE DE 1.00 X2.47 m. CADA UNA, A BASE DE ANGULO DE ACERO DE 1 1/2X1/8\" PARA CONTRAMARCO Y MARCO DE PTR DE 1X1\" CALIBRE 14, BARROTES DE CUADRADO DE 1/2\"; INCLUYE: BISAGRAS DE BARRIL DE 5/8\", CERRADURA DE SOBREPONER MARCA PHILIPS MOD. 725, SIMILAR O SUPERIOR, HABILITADO, CORTE, SOLDADURA, PROMAX PRIMARIO EPÓXICO MARCA SHERWIN WILLIAMS, 2 MANOS DE PINTURA PROMAX ACABADO EPÓXICO MARCA SHERWIN WILLIAMS, SIMILAR O SUPERIOR, COLOR INDICADO EN OBRA, LIMPIEZA, MANO DE OBRA, EQUIPO Y HERRAMIENTA.","pza.",2,null,0]
[null,"Total  CAPÍTULO 5: HERRERÍA",null,null,null,{"$f":"SUM(F84:F87)","v":0}]
["CAPÍTULO 6","INSTALACIONES"]
[null,"B) INSTALACIÒN ELÈCTRICA E INTERNET"]
["UI-IEI-001","SALIDA PARA LUMINARIA, CONTACTO, VENTILADOR, EXTRACTOR, SALIDA PARA LUMINARIA, CONTACTO, VENTILADOR, EXTRACTOR, APAGADOR Y TIMBRE, CON TUBERIA CONDUIT DE PVC TIPO PESADO DE 13, 19 Y 25 mm., CON UN DESARROLLO DE 6.0 m., CHALUPA Y CAJA REGISTRO DE PVC REFORZADO DE 13 Y 19 mm., INCLUYE: CONECTOR Y CONTRA, RANURAS Y RESANES EN MUROS, GUÍAS DE ACERO GALVANIZADO C.14, OMEGA DE VARILLA DE 3/8\" PARA VENTILADOR Y TODO LO NECESARIO PARA SU CORRECTA EJECUCIÓN (VER PLANO ELÉCTRICO).","sal.",7,null,{"$f":"ROUND(D91*E91,2)","v":0}]
["UI-IEI-002","SALIDA PARA CONTACTO EN PISO A 10 cm. DEL N.P.T., CON TUBERIA CONDUIT DE PVC TIPO PESADO DE 19 mm., CON UN DESARROLLO DE 6.0 m., CONDULET SERIE RECTANGULAR TIPO FSS DE 19mm. (3/4”). INCLUYE:  CONECTOR Y CONTRA, GUÍAS DE ACERO GALVANIZADO C.14, Y TODO LO NECESARIO PARA SU CORRECTA EJECUCIÓN.","sal.",12,null,0]
["UI-IEI-006","SALIDA PARA AIRE ACONDICIONADO TIPO MINI-SPLIT CON TUBERIA CONDUIT DE PVC TIPO PESADO DE 19 Y 25 mm., CON UN DESARROLLO DE 12.0 m. HASTA LA BASE DE CONCRETO. INCLUYE: CONECTOR CONDUIT DE PVC, CAJA REGISTRO SERIE RECTANGULAR FSCT-2 DE 3/4\" CON TAPA CIEGA DS-100 A PRUEBA DE LLUVIA (UNA POR DOS COMPRESORES), CONECTOR GLANDULA, TRAZO, EXCAVACIÓN, CAMA DE ARENA DE 10cm., RELLENO COMPACTADO Y TODO LO NECESARIO PARA SU CORRECTA EJECUCIÓN. (VER PLANO ELÉCTRICO).","sal.",2,null,0]
["UI-IEI-010","SALIDA PARA RED DE INTERNET, TELÉFONO, SISTEMA DE ALARMA, CÁMARA Y CAÑON PROYECTOR, POR MURO Y PISO, CON TUBERÍA CONDUIT DE PVC TIPO PESADO DE 13, 19 Y 25 mm., CON UN DESARROLLO DE 6 m., CHALUPA DE PVC DE 3/4\". INCLUYE: RANURAS Y RESANES Y TODO LO NECESARIO PARA SU CORRECTA EJECUCIÓN, (VER PLANO ELÉCTRICO).","sal.",6,null,0]
["UI-IEI-011","SALIDA PARA RED DE INTERNET EN PISO A 10 cm. DEL N.P.T, CON TUBERÍA CONDUIT DE PVC TIPO PESADO DE 19 Y 25 mm., CON UN DESARROLLO DE 6 m., CAJA CONDULET SERIE RECTANGULAR TIPO FSS DE 19mm. (3/4”). INCLUYE:  CONECTOR Y CONTRA, GUÍAS DE ACERO GALVANIZADO C.14, Y TODO LO NECESARIO PARA SU CORRECTA EJECUCIÓN.","sal.",12,null,0]
["UI-IEI-015","SUMINISTRO Y COLOCACIÓN DE LUMINARIA DE SOBREPONER DE LED, MODELO MONTISI V DE 2X16 w., LUZ BLANCA, BASE G5 TECNOLITE (32LTLLED2282V40B) O SIMILAR. INCLUYE: CABLEADO AL TABLERO CON CONDUCTOR CALIBRE No. 12 AWG. TIPO THW. MARCA CONDUMEX Y AL APAGADOR, CONEXIONES, MISCELÁNEOS, PRUEBAS Y TODO LO NECESARIO PARA SU BUEN FUNCIONAMIENTO.","pza.",12,null,0]
["UI-IEI-023","APAGADOR SENCILLO BTICINO O LEVITON, DE 16A, 125V, INCLUYE: SUMINISTRO E INSTALACIÓN, CONEXIONES, MISCELÁNEOS, PRUEBAS Y TODO LO NECESARIO PARA SU BUEN FUNCIONAMIENTO.","pza.",2,null,0]
["UI-IEI-025","SUMINISTRO Y COLOCACIÓN DE CONTACTOS DOBLES TIPO DÚPLEX POLARIZADOS, CON POLO DE TIERRA FISICA A 127 VOLTS, MARCA BITICINO MODELO MODUS O SIMILA. INCLUYE: TAPA REALZADA, CABLEADO CONDUCTOR CALIBRE No. 10 AWG Y DESNUDO No. 12 TIPO THW. MARCA CONDUMEX, CONEXIONES, PRUEBAS Y MISCELÁNEOS.","pza.",5,null,0]
["UI-IEI-026","SUMINISTRO Y COLOCACIÓN DE CONTACTO DÚPLEX POLARIZADOS A 20 AMPERES, CON POLO DE TIERRA FÍSICA A 127 VOLTS, MARCA LEVITÓN MODELO S01-CR20-IS O SIMILAR. INCLUYE: TAPA REALZADA, CABLEADO, CONDUCTOR CALIBRE NO. 10 AWG. TIPO THW. MARCA CONDUMEX, CONEXIONES, PRUEBAS Y MISCELÁNEOS.","pza.",12,null,0]
["UI-IEI-032","SUMINISTRO Y COLOCACIÓN DE TAPAS CON SALIDA RJ45 DE DOS PUERTOS O SIMILAR, MARCA STEREN PARA SALIDAS DE EQUIPO DE CÓMPUTO. INCLUYE: CABLE UTP CATEGORIAS 6 MARCA CONDUMEX O AVAYA, DE LA SALIDA DE RED AL CONCENTRADOR DEJANDO PUNTAS DE 2.50 m., MANO DE OBRA Y TODO LO NECESARIO PARA SU CORRECTA INSTALACIÓN.\n","pza.",15,null,0]
["UI-IEI-047","SUMINISTRO Y COLOCACIÓN DE INTERRUPTOR TERMOMAGNETICO DE 20 AMPERES. INCLUYE: INSTALACIÓN, CONEXIONES Y PRUEBAS.","pza.",5,null,0]
["UI-IEI-050","SUMINISTRO Y COLOCACIÓN DE INTERRUPTOR TERMOMAGNÉTICO DE 2X30 AMPERES. INCLUYE: INSTALACIÓN, CONEXIONES Y PRUEBAS.","pza.",2,null,0]
["UI-IEI-069","SUMINISTRO E INSTALACIÓN DE UNIDAD DE AIRE ACONDICIONADO TIPO MINISPLIT, MARCA YORK MOD. YHKE36ZJ6AMBORX CAP. 36,000 btu/hr, (3.0 Ton.), COMPRESOR FIJO R410A, PARA OPERAR A 220 VOLTS, 2 FASES. INCLUYE: CENTRO DE CARGA Q02 PARA INTEMPERIE, PASTILLA TERMOMAGNÉTICA DE 2X40 AMPERES, CABLEADO CALIBRE 10 AWG, PRUEBAS, MATERIALES, MANO DE OBRA, HERRAMIENTA, EQUIPO, ANDAMIOS, ACARREOS Y ELEVACIONES.","pza.",2,null,0]
["UI-IEI-076","SUMINISTRO Y COLOCACIÓN DE SUPRESOR DE TRANSITORIOS TVS2HWA50X SQUARE D SURGELOGIC HWA 208 Y / 120 VCA   3F 4H 50 KA. INCLUYE: MATERIAL, MANO DE OBRA Y TODO LO NECESARIO PARA SU CORRECTA INSTALACIÓN.","pza.",1,null,0]
["UI-IEI-081","SUMINISTRO Y TENDIDO DE TUBERIA TIPO PAD DE 4\" (100mm) DE DIÁMETRO LISO RD 17, INCLUYE: UNIÓN A REGISTRO, MATERIALES, MANO DE OBRA, HERRAMIENTA Y TODO LO NECESARIO PARA SU CORRECTA EJECUCIÓN.","ml.",100,null,0]
["UI-IEL-090","REGISTRO ELÉCTRICO INTERIOR DE 60 X 60 cm. DE MEDIDAS INTERIORES Y 80cm. DE PROFUNDIDAD, A BASE DE MUROS DE TABICÓN DE CONCRETO DE 10X14X28cm.  ASENTADO CON MEZCLA DE CEMENTO ARENA EN PROPORCIÓN DE 1:5, DE 1cm. DE ESPESOR, APLANADO ACABADO PULIDO EN INTERIOR, PISO CON FILTRO DE GRAVA DE 10 cm. DE ESPESOR; TAPA EXPLORABLE DE CONCRETO DE 6 cm.DE ESPESOR, DE CONCRETO HECHO EN OBRA DE F'c=250 kg/cm² A BASE DE MARCO Y CONTRAMARCO PREFABRICADO DE ÁNGULO DE FIERRO DE 1/8 X 1”   REFORZADA CON VARILLA DE 3/8” A CADA 17 cm., ACABADO DE ACUERDO AL TIPO DE LOSETA , INCLUYE: TRAZO, NIVELACIÓN, EXCAVACIÓN, TODOS LOS MATERIALES NECESARIOS, ACARREOS EN CARRETILLA A 10ml., DESPERDICIOS, LIMPIEZA, MANO DE OBRA, EQUIPO Y HERRAMIENTA.","pza.",1,null,0]
["UI-IEI-091","REGISTRO ELÉCTRICO EXTERIOR TIPO BANCA DE 100 X 100 cm. DE MEDIDAS INTERIORES Y 100 cm. DE PROFUNDIDAD, A BASE DE MUROS DE TABICÓN DE 10X14X28 cm.  ASENTADO CON MEZCLA DE CEMENTO ARENA EN PROPORCIÓN DE 1:5, DE 1 cm. DE ESPESOR, APLANADO ACABADO PULIDO EN INTERIOR Y ACABADO FINO EN EXTERIOR, PISO CON FILTRO DE GRABA DE 3/4” DE 10 cm. DE ESPESOR, TAPA EXPLORABLE DE CONCRETO DE 8 cm. DE ESPESOR REFORZADA CON VARILLA DEL 3/8\" A CADA 20 cm. EN AMBOS SENTIDOS, COLADA CON CONCRETO HECHO EN OBRA DE F'c=250 kg/cm², INCLUYE: TRAZO, NIVELACIÓN, EXCAVACIÓN, TODOS LOS MATERIALES NECESARIOS, ACARREOS EN CARRETILLA A 10ml., DESPERDICIOS, LIMPIEZA, MANO DE OBRA, EQUIPO Y HERRAMIENTA.","pza.",3,null,0]
["UI-IEI-092","REGISTRO ELÉCTRICO EXTERIOR TIPO BANCA DE 60 X 60 cm. DE MEDIDAS INTERIORES Y 80 cm. DE PROFUNDIDAD, A BASE DE MUROS DE TABICÓN DE CONCRETO DE 10X14X28 cm.  ASENTADO CON MEZCLA DE CEMENTO ARENA EN PROPORCIÓN DE 1:5, DE 1 cm. DE ESPESOR, APLANADO ACABADO PULIDO EN INTERIOR Y ACABADO FINO EN EXTERIOR, PISO CON FILTRO DE GRAVA DE 3/4\"  DE 10 cm. DE ESPESOR; TAPA EXPLORABLE DE CONCRETO DE 8 cm. DE ESPESOR REFORZADA CON VARILLA DE 3/8” A CADA 20 cm. EN AMBOS SENTIDOS, COLADA CON CONCRETO HECHO EN OBRA DE F'c=250 kg/cm², INCLUYE: TRAZO, NIVELACIÓN, EXCAVACIÓN, TODOS LOS MATERIALES NECESARIOS, ACARREOS EN CARRETILLA A 10 ml., DESPERDICIOS, LIMPIEZA, MANO DE OBRA, EQUIPO Y HERRAMIENTA.","pza.",1,null,0]
["UI-IEI-093","REGISTRO DE RED INTERIOR DE 60 X 60 cm. DE MEDIDAS INTERIORES Y 80cm. DE PROFUNDIDAD, A BASE DE MUROS DE TABICÓN DE CONCRETO DE 10X14X28cm.  ASENTADO CON MEZCLA DE CEMENTO ARENA EN PROPORCIÓN DE 1:5, DE 1cm. DE ESPESOR, APLANADO ACABADO PULIDO EN INTERIOR, PISO DE CONCRETO F'C=150 kg/cm² DE 10 cm. DE ESPESOR; TAPA EXPLORABLE DE CONCRETO DE 6 cm.DE ESPESOR, DE CONCRETO HECHO EN OBRA DE F'C=250 kg/cm² A BASE DE MARCO Y CONTRAMARCO PREFABRICADO DE ÁNGULO DE FIERRO DE 1/8 X 1”   REFORZADA CON VARILLA DE 3/8” A CADA 17 cm., ACABADO DE ACUERDO AL TIPO DE LOSETA , INCLUYE: TRAZO, NIVELACIÓN, EXCAVACIÓN, TODOS LOS MATERIALES NECESARIOS, ACARREOS EN CARRETILLA A 10ml., DESPERDICIOS, LIMPIEZA, MANO DE OBRA, EQUIPO Y HERRAMIENTA.","pza.",1,null,0]
["UI-IEI-094","REGISTRO DE RED EXTERIOR TIPO BANCA DE 60 X 60cm. DE MEDIDAS INTERIORES Y 80 cm. DE PROFUNDIDAD, A BASE DE MUROS DE TABICÓN DE CONCRETO DE 10X14X28 cm.  ASENTADO CON MEZCLA DE CEMENTO ARENA EN PROPORCIÓN DE 1:5, DE 1 cm. DE ESPESOR, APLANADO ACABADO PULIDO EN INTERIOR Y ACABADO FINO EN EXTERIOR, PISO DE CONCRETO F'c=150 kg/cm² DE 10 cm. DE ESPESOR; TAPA EXPLORABLE DE CONCRETO DE 6 cm. DE ESPESOR REFORZADA CON VARILLAS DE 3/8” A CADA 17 cm. EN AMBOS SENTIDOS, DE CONCRETO HECHO EN OBRA DE F'c=250 kg/cm², INCLUYE: TRAZO, NIVELACIÓN, EXCAVACIÓN, TODOS LOS MATERIALES NECESARIOS, ACARREOS EN CARRETILLA A 10 ml., DESPERDICIOS, LIMPIEZA, MANO DE OBRA, EQUIPO Y HERRAMIENTA.","pza.",3,null,0]
["UI-IEI-100","ENCOFRADO PARA TUBERÍA SUBTERRANEA ELÉCTRICA O DE RED DE 50 cm. DE ANCHO Y 30 cm. DE ALTURA, CON CONCRETO HIDRÁULICO F´c=150 kg/cm². INCLUYE: TRAZO, EXCAVACIÓN DE CEPA DE 50X80 cm., CAMA DE ARENA DE 10 cm. DE ESPESOR PARA TENDIDO DE TUBERIA, SEPARADORES DE PVC PARA DUCTOS SUBTERRANEOS A CADA 1.50 ml.; DE ACUERDO AL DIAMETRO DE LA TUBERÍA, RELLENO COMPACTADO CON BAILARINA PARA CUBRIR EL ENCOFRADO, MATERIAL, MANO DE OBRA, EQUIPO, HERRAMIENTA Y TODO LO NECESARIO PARA SU CORRECTA EJECUCIÓN","ml.",50,null,0]
[null,"B) INSTALACIÒN ELÈCTRICA E INTERNET",null,null,null,{"$f":"SUM(F91:F111)","v":0}]
[null,"Total  CAPÍTULO 6: INSTALACIONES",null,null,null,{"$f":"+F112","v":0}]
["CAPÍTULO 7","OBRA EXTERIOR"]
["UI-OEX-007","MURETE DE ENRASE EN CIMENTACIÒN CON TABICÒN PESADO DE 10X14X28 cm., ASENTADO CON MORTERO CEMENTO-ARENA 1:4 DE 14 cm. DE ESPESOR, TRABAJO TERMINADO.","m²",12.22,null,{"$f":"ROUND(D115*E115,2)","v":0}]
["UI-OEX-011","CASTILLO K0  DE 15X15 cm. DE CONCRETO HECHO EN OBRA DE F'c=200 kg/cm², ACABADO COMÚN, ARMADO CON 4 VARILLAS DE 3/8\" Y ESTRIBOS DEL No.2 A CADA 20 cm., INCLUYE: MATERIALES, ACARREOS, CORTES, DESPERDICIOS, ARMADO, TRASLAPES, AMARRES, CIMBRADO, COLDADO, DESCIMBRADO, MANO DE OBRA, EQUIPO Y HERRAMIENTA.","ml.",7.7,null,0]
["UI-OEX-016","CADENA DE 15X25 cm. DE CONCRETO HECHO EN OBRA DE F'c=200 kg/cm², ACABADO COMÚN, ARMADA CON 4 VARILLAS DE 3/8\" Y ESTRIBOS DEL No.2 A CADA 20 cm., INCLUYE: MATERIALES, ACARREOS, CORTES, DESPERDICIOS, TRASLAPES, AMARRES, CIMBRADO, COLADO, DESCIMBRADO, MANO DE OBRA, EQUIPO Y HERRAMIENTA.","ml.",7.3,null,0]
["UI-OEX-017","DENTELLÒN PARA BANQUETA DE 30X15 cm. DE CONCRETO HECHO EN OBRA DE F'c=200 kg/cm², ARMADA CON EST DEL No. 2 A CADA 25 CM, 4 VARILLAS DE 3/8\" Y BARBAS DE ACERO DEL No. 2 DE 63 cm. DE DESARROLLO. INCLUYE: FORJADO DE NARIZ CON CIMBRA APARENTE, MATERIALES, ACARREOS, CIMBRADO, COLADO, MANO DE OBRA, EQUIPO Y HERRAMIENTA.","ml.",14,null,0]
["UI-OEX-021","RELLENO CON MATERIAL DE BANCO, COMPACTADO CON PISÓN DE MANO EN CAPAS NO MAYORES DE 20 cm. INCLUYE: SUMINISTRO DE TODOS LOS MATERIALES, ADICIÓN DEL AGUA NECESARIA, MANO DE OBRA, EQUIPO Y HERRAMIENTA.","m³",9.93,null,0]
["UI-OEX-025","BANQUETA DE 10 cm. DE ESPESOR DE CONCRETO DE F'c=150 kg/cm², T.M.A. 3/4\" ACABADO ESCOBILLADO, INCLUYE: CIMBRADO, COLADO, JUNTAS CON VOLTEADOR A CADA 1.50 ml. CURADO, DESCIMBRADO, MATERIALES, MANO DE OBRA, EQUIPO Y HERRAMIENTA.","m²",18.5,null,0]
[null,"Total  CAPÍTULO 7: OBRA EXTERIOR",null,null,null,{"$f":"SUM(F115:F120)","v":0}]
[null,"TOTAL LABORATORIO DE CÒMPUTO",null,null,null,{"$f":"+F121+F113+F88+F82+F64+F57+F41","v":0}]
[null,"SALA DE AUTOACCESO"]
["CAPÍTULO 1"," PRELIMINARES"]
["UI-PRE-002","RETIRO DE CANCELERÍA DE ALUMINIO DE 3\" CON CRISTAL FILTRASOL DE 6 mm. EN FACHADAS. INCLUYE: ACARREO DENTRO DE LA OBRA Y RESGUARDO EN BODEGA, LIMPIEZA DE LOS PERFILES, MANO DE OBRA, EQUIPO Y HERRAMIENTA.","m²",10.19,null,{"$f":"ROUND(D125*E125,2)","v":0}]
["UI-PRE-003","RETIRO DE PUERTA CON TABLERO MULTIPANEL DE 2.50X1.00 m., CON MARCO Y CONTRAMARCO DE ALUMINIO DE 2\", CHAPA PHILLIPS No. 55O-AN, INCLUYE: ACARREO DENTRO DE LA OBRA PARA RESGUARDARLO EN BODEGA.","pza.",2,null,{"$f":"ROUND(D126*E126,2)","v":0}]
["UI-PRE-005","RETIRO DE TEJA DE BARRO DE 20X15 cm. ASENTADO CON MEZCLA DE CEMENTO-ARENA PROP.1:3, EN AZOTEA, CON RECUPERACIÓN. INCLUYE: MANO DE OBRA, ACARREO DEL MATERIAL DENTRO DE LA OBRA (1 km.), APILADO DEL MATERIAL, HERRAMIENTA, LIMPIEZA DEL ÀREA DE TRABAJO Y TODO LO NECESARIO PARA SU BUEN FUNCIONAMIENTO.","m²",137.28,null,0]
["UI-PRE-006","RETIRO DE IMPERMEABILIZANTE EXISTENTE CON ESPESOR DE 4 mm. INCLUYE: LIMPIEZA CON CEPILLO DE ALAMBRE, ANDAMIOS, MANO DE OBRA, HERRAMIENTA Y RETIRO DEL MATERIAL SOBRANTE FUERA DE LA OBRA (1 km.).","m²",135.43,null,0]
["UI-PRE-007","DESMONTAJE DE UNIDAD DE AIRE ACONDICIONADO: COMPRESOR Y MINI SPLIT, CON PESO APROXIMADO DE 130 kg., (CAPACIDAD 2-3 Ton. APROX.), HASTA UNA ALTURA DE 6 m., INCLUYE: DESCONEXIÓN DE DUCTOS DE REFRIGERACIÒN, TUBERÍAS DE AGUA, DESCONEXIÓN DE INSTALACIÓN ELÉCTRICA, ACARREOS HASTA EL ALMACÉN DE LA OBRA, MANO DE OBRA, GRÚA, EQUIPO Y HERRAMIENTA.","pza.",2,null,0]
["UI-PRE-009","TRAZO Y NIVELACIÓN MANUAL PARA ESTABLECER EJES, BANCO DE NIVEL Y REFERENCIAS, INCLUYE: MATERIALES, MANO DE OBRA, EQUIPO Y HERRAMIENTA.","m²",188.07,null,0]
["UI-PRE-014","DESPALME DE TERRENO NATURAL A MANO, ESPESOR PROMEDIO DE 20 cm., INCLUYE: EQUIPO, MANO DE OBRA,  CARGA Y ACARREO DEL MATERIAL NO ÚTIL FUERA DE LA OBRA A 1 km.","m²",68.489999999999995,null,0]
["UI-PRE-016","DEMOLICIÓN DE MURO 14 cm. DE ESPESOR DE TABIQUE ROJO, A MANO Y MARRO. INCLUYE: CADENAS, CASTILLOS Y APLANADO DE MEZCLA POR AMBAS CARAS, MANO DE OBRA, ANDAMIOS, HERRAMIENTA, ACARREO DENTRO DE LA OBRA 1 km., LIMPIEZA DEL ÀREA DE TRABAJO.","m²",23.37,null,0]
["UI-PRE-024","DEMOLICIÓN DE APLANADO DE MEZCLA CEM-ARENA, EN MURO CON ESPESOR DE 2 cm. PROMEDIO, INCLUYE: ANDAMIOS,ACARREO DENTRO DE LA OBRA 1 km., LIMPIEZA DEL ÀREA DE TRABAJO, MANO DE OBRA, EQUIPO Y HERRAMIENTA.","m²",98.13,null,0]
["UI-PRE-029","ACARREO EN CAMIÓN km. SUBSECUENTES DEL MATERIAL NO UTIL FUERA DE LA OBRA, A BANCO ELEGIDO POR LA CONTRATISTA Y AUTORIZADO POR EL MUNICIPIO.","m3/km",902.39,null,0]
["UI-PRE-035","DEMOLICIÓN DE PISO DE 10 cm. DE ESPESOR DE CONCRETO ARMADO CON MALLA DE REFUERZO, A MANO CON CUÑA Y MARRO, INCLUYE: EQUIPO DE CORTE, ROMPEDORA, MANO DE OBRA, EQUIPO, HERRAMIENTA, ACARREO DENTRO DE LA OBRA 1 km., LIMPIEZA DEL ÀREA DE TRABAJO.","m²",107.07,null,0]
["UI-PRE-038","DESMONTAJE DE PROTECCIÓN METÁLICA, INCLUYE: EQUIPO DE CORTE OXI-ACETILENO, ACARREO HASTA EL ALMACÉN DE LA OBRA, LIMPIEZA, MANO DE OBRA, EQUIPO Y HERRAMIENTA.","m²",18.32,null,0]
["UI-PRE-039","DESMONTAJE DE SALIDA DE CONTACTO Y RED DE INTERNET VISIBLE, A BASE TUBERÍA PVC CONDUIT Y/O CANALETA DE PVC. INCLUYE: RETIRO DE CABLEADO, PLACAS, CONTACTOS, CONECTOR RJ45, CANALETAS, CAJAS REGISTRO Y SOPORTERÍA, CON RECUPERACIÓN DEL MATERIAL Y ACARREO AL ALMACÉN DEFINIDO POR LA UNISTMO, MANO DE OBRA, ANDAMIOS, EQUIPO Y HERRAMIENTA.","sal.",33,null,0]
["UI-PRE-040","DESMONTAJE CON RECUPERACIÓN DE LUMINARIA TIPO INDUSTRIAL DE 0.30X1.22m., HASTA UNA ALTURA DE 4 m. INCLUYE: DESCONEXIÓN, RETIRO DE SOPORTERIA, ANDAMIOS, ACARREOS HASTA LA BODEGA, MANO DE OBRA, EQUIPO Y HERRAMIENTA.","pza.",8,null,0]
["UI-PRE-041","DESMONTAJE DE INTERRUPTOR DE SEGURIDAD DE 3X100 Amp. PARA ATORNILLA O ENCHUFABLE. INCLUYE: DESENERGIZACIÓN, DESCONEXIÓN DE TUBERÍAS Y CABLES, MANO DE OBRA, EQUIPO Y HERRAMIENTA.","pza.",1,null,0]
["UI-PRE-042","DESMONTAJE DE INTERRUPTOR TERMOMAGNÉTICO DE 1 A 3 POLOS ATORNILLABLE O ENCHUFABLE CON RECUPERACIÒN. INCLUYE: MANO DE OBRA, EQUIPO Y HERRAMIENTA, ACARREO A BODEGA EN OBRA.","pza.",12,null,0]
["UI-PRE-043","DESMONTAJE DE TABLERO DE ALUMBRADO Y DISTRIBUCIÓN NQOD DE 12 CIRCUITOS CON RECUPERACIÒN. INCLUYE: DESCONEXIÓN DE TUBERÍAS Y CABLEADO, RETIRO Y ACARREO A BODEGA DE LA OBRA, MANO DE OBRA, EQUIPO Y HERRAMIENTA. ","pza.",1,null,0]
[null,"Total  CAPÍTULO 1.- PRELIMINARES",null,null,null,{"$f":"SUM(F125:F141)","v":0}]
["CAPÍTULO 2","CIMENTACIÓN"]
["UI-CIM-005","EXCAVACIÒN DE CEPA (TIPO CAJÓN) POR MEDIOS MANUIALES, PARA CIMENTACIÓN DE EDIFICIOS, EN MATERIAL TIPO \"B\" A UNA PROFUNDIDAD DE 0 A 2.0 m., INCLUYE: AFINE DE TALUD, ACARREO DENTRO Y FUERA DE LA OBRA DEL MATERIAL NO UTILIZADO PRODUCTO DE EXCAVACIÓN A 1 km. FUERA DE LA OBRA, HERRAMIENTA Y TODO LO NECESARIO PARA SU CORRECTA EJECUCIÓN.","m³",130.5,null,{"$f":"ROUND(D144*E144,2)","v":0}]
["UI-CIM-007","AFINE, NIVELACIÓN Y COMPACTACIÓN DEL FONDO DE LA EXCAVACIÓN CON BAILARINA. INCLUYE: MATERIALES, MANO DE OBRA, EQUIPO Y HERRAMIENTA.","m²",93.22,null,0]
["UI-CIM-008","PLANTILLA DE 5 cm. DE ESPESOR DE CONCRETO HECHO EN OBRA DE F'c=100 kg./cm2. INCLUYE: PREPARACIÓN DE LA SUPERFICIE, NIVELACIÓN, MAESTREADO, COLADO, MANO DE OBRA, EQUIPO Y HERRAMIENTA.","m²",9.06,null,0]
["UI-CIM-010","ACERO DE REFUERZO  EN CIMENTACIÓN CON ALAMBRÓN DEL #2 F´y=2530 kg/cm2, INCLUYE: SUMINISTRO, HABILITADO, ARMADO, TRASLAPES, GANCHOS (VER DETALLES ADICIONALES DE REFUERZO EN PLANOS ESTRUCTURALES) Y DESPERDICIOS.","KG",20,null,0]
["UI-CIM-011","ACERO DE REFUERZO EN CIMENTACIÓN CON VARILLA DEL #3 F´y=4200 kg/cm2. INCLUYE: SUMINISTRO, HABILITADO, ARMADO, TRASLAPES, GANCHOS, ESCUADRAS (VER DETALLES ADICIONALES DE REFUERZO EN PLANOS ESTRUCTURALES), SILLETAS, DESPERDICIOS.","KG",100.35,null,0]
["UI-CIM-012","ACERO DE REFUERZO EN CIMENTACIÓN CON VARILLA #4 F´y=4200 kg/cm2.  INCLUYE: SUMINISTRO, HABILITADO, ARMADO, TRASLAPES, GANCHOS, ESCUADRAS (VER DETALLES ADICIONALES DE REFUERZO EN PLANOS ESTRUCTURALES), SILLETAS, DESPERDICIOS.","KG",36.81,null,0]
["UI-CIM-013","ACERO DE REFUERZO EN CIMENTACIÓN CON VARILLA #5 F´y=4200 kg/cm2.  INCLUYE: SUMINISTRO, HABILITADO, ARMADO, TRASLAPES, GANCHOS, ESCUADRAS (VER DETALLES ADICIONALES DE REFUERZO EN PLANOS ESTRUCTURALES), SILLETAS, DESPERDICIOS.","KG",146.02000000000001,null,0]
["UI-CIM-018","CIMBRA EN CIMENTACIÓN, ACABADO COMÚN. INCLUYE: MATERIALES, ACARREOS, CORTES, HABILITADOS, CIMBRADO, DESCIMBRADO, DESMOLDANTE, MANO DE OBRA, EQUIPO, HERRAMIENTA Y TODO LO NECESARIO PARA SU CORRECTA EJECUCIÓN.","m²",12.62,null,0]
["UI-CIM-021","CONCRETO HECHO EN OBRA F'c=250 kg/cm2 EN CIMENTACIÓN, T.M.A. 3/4\". INCLUYE: ACARREO, COLOCADO, VIBRADO, CURADO POR 7 DÍAS Y PRUEBAS DE LABORATORIO.","m³",2.25,null,0]
["UI-CIM-035","RELLENO CON MATERIAL DE BANCO, COMPACTADO CON BAILARINA AL 95% DE SU P.V.S. PRUEBA PROCTOR, ADICIONANDO AGUA. INCLUYE: SUMINISTRO DE MATERIALES, ACARREOS, MANO DE OBRA, MAQUINARÌA, EQUIPO, HERRAMIENTA Y TODO LO NECESARIO PARA SU CORRECTA EJECUCIÓN.","m³",81.19,null,0]
["UI-CIM-037","RELLENO EN CAPAS DE 20 cm. DE ESPESOR CON GRAVA CONTROLADA DE 38 mm. COMPACTADA. INCLUYE: SUMINISTRO DE MATERIALES, ACARREOS, MANO DE OBRA, MAQUINARÌA, EQUIPO, HERRAMIENTA Y TODO LO NECESARIO PARA SU CORRECTA EJECUCIÓN.","m³",18.64,null,0]
["UI-CIM-038","PEDRAPLÉN DE 30 cm. DE ESPESOR CONFORMADO CON PIEDRA BOLA DE 3\" HASTA 7\", COMPACTADA CON EQUIPO MECÀNICO (BAILARINA). INCLUYE: SUMINISTRO DE MATERIALES, ACARREOS, MANO DE OBRA, MAQUINARÌA, EQUIPO, HERRAMIENTA Y TODO LO NECESARIO PARA SU CORRECTA EJECUCIÓN.","m³",27.97,null,0]
["UI-CIM-042","PLACA BASE DE ACERO A-36 DE 5/8\" (16 mm.) DE 30X35 cm. CON 8 ANCLAS DE REDONDO DE 3/4\" Y UN DESARROLLO DE 90 cm. CON ROSCA EN UN EXTREMO. INCLUYE: TUERCAS Y RONDANAS, TRAZO, MATERIALES, CORTES, EQUIPO DE CORTE, FIJACIÓN, ESTRIBO DE VARILLA DE 3/8\" PARA APOYO, MANO DE OBRA, EQUIPO Y HERRAMIENTA.","pza.",2,{"$f":"+E55","v":0},0]
["UI-CIM-046","PLACA DE ACERO A-36 DE 3/8\" (9.5 mm.) DE 10X35 cm. (CARTABÓN), SOLDADA A PLACA BASE PL1 DE 5/8”, DE ACUERDO A DETALLE DE PLANO ESTRUCTURAL. INCLUYE: TRAZO, MATERIALES, CORTES, EQUIPO DE CORTE, FIJACIÓN, MANO DE OBRA, EQUIPO Y HERRAMIENTA.","pza.",4,{"$f":"+E56","v":0},0]
[null,"Total  CAPÍTULO 2.- CIMENTACIÓN",null,null,null,{"$f":"SUM(F144:F157)","v":0}]
["CAPÍTULO 3","ESTRUCTURAS"]
["B)","ESTRUCTURA METÀLICA"]
["UI-ESTM-001","ESTRUCTURA METÁLICA, PERFIL IPR 10\"X 5 3/4\" (32.8 kg/m) EN COLUMNA CM1. INCLUYE: ELEVACIONES, SUMINISTRO DE MATERIALES, ACARREOS, CORTES, TRAZO, HABILITADO, SOLDADURA, ANCLAJES Y/O FIJACIÒN EN PLACA BASE, APLICACIÓN DE PINTURA PROMAX PRIMARIO EPÓXICO MARCA SHERWIN WILLIAMS, SIMILAR O SUPERIOR, MONTAJE, MANO DE OBRA, MAQUINARIA, EQUIPO, HERRAMIENTA Y TODO LO NECESARIO PARA SU CORRECTA EJECUCIÓN.","ml.",5.4,{"$f":"+E60","v":0},{"$f":"ROUND(D161*E161,2)","v":0}]
["UI-ESTM-020","ESTRUCTURA METÁLICA, PERFIL IPR 10\"X 5 3/4\" (32.8 kg/m) EN TRABE TM1. INCLUYE: ELEVACIONES, SUMINISTRO DE MATERIALES, ACARREOS, CORTES, TRAZO, HABILITADO, SOLDADURA, ANCLAJES Y/O FIJACIÒN EN PLACA DE CONEXIÒN Y COLUMNA CM1, APLICACIÓN DE PINTURA PROMAX PRIMARIO EPÓXICO MARCA SHERWIN WILLIAMS, SIMILAR O SUPERIOR, MONTAJE, MANO DE OBRA, MAQUINARIA, EQUIPO, HERRAMIENTA Y TODO LO NECESARIO PARA SU CORRECTA EJECUCIÓN.","ml.",7.2,{"$f":"+E61","v":0},0]
["UI-ESTM-050","PLACA DE CONEXIÒN TM1-TC, A BASE DE SOLERA DE ACERO A-36 DE 4\" X 1/2\" (13 mm.) DE 25 cm. DE LONGITUD, CON 2 CONECTORES DE VARILLA CORRUGADA DE 1/2\" Y 14 cm. DE LONGITUD (VER DETALLE EN PLANO). INCLUYE: TRAZO, ALINEACIÒN, PERFORACIÒN DE ELEMENTO DE CONCRETO CON TALADRO GUÌA DE 5/8\", RESINA EPOXICA FISCHER 390 EM DE ACUERDO A LAS ESPECIFICACIONES DEL PLANO ESTRUCTURAL, MATERIALES, CORTES, EQUIPO DE CORTE, FIJACIÓN, MANO DE OBRA, EQUIPO Y HERRAMIENTA.","pza.",12,{"$f":"+E62","v":0},0]
["UI-ESTM-051","PLACA REFUERZO (ATIEZADORES) A BASE DE SOLERA DE 2 1/2\" X 1/4\" DE 24 cm. DE LONGITUD, SOLDADA AL PERFIL METÀLICO COLUMNA O TRABE (VER DETALLE EN PLANO). INCLUYE: TRAZO, ALINEACIÒN, MATERIALES, CORTES, EQUIPO DE CORTE, FIJACIÓN, MANO DE OBRA, EQUIPO Y HERRAMIENTA.","pza.",8,{"$f":"+E63","v":0},0]
[null,"Total  CAPÍTULO 3.- ESTRUCTURAS",null,null,null,{"$f":"SUM(F161:F164)","v":0}]
["CAPÍTULO 4","ALBAÑILERIA Y ACABADOS"]
["UI-ALB-001","CADENA DE DESPLANTE DE CONCRETO  F'c=200 kg/cm2 DE 15X30 cm. ARMADO CON 4 VARILLAS No.4 Y ESTRIBOS DEL No.2, 1@5, 8@10 Y @ 17 cm. ANCLADAS A LA CIMENTACIÒN. INCLUYE: HABILITADO, CIMBRADO, COLADO, VIBRADO, DESCIMBRADO, CRUCES DE VARILLA Y ANCLAJES,  CURADO, MANO DE OBRA, HERRAMIENTAS Y MATERIALES. ","ml.",13.59,{"$f":"+E66","v":0},{"$f":"ROUND(D167*E167,2)","v":0}]
["UI-ALB-016","CADENA INTERMEDIA O DE CERRAMIENTO DE CONCRETO  F'c=200 kg/cm2 DE 15X30 cm. ARMADO CON 4 VARILLAS No.4 Y ESTRIBOS DEL No.2, 1@5, 8@10 Y @ 17 cm. INCLUYE: HABILITADO, CIMBRADO, COLADO, VIBRADO, DESCIMBRADO, CRUCES DE VARILLA Y ANCLAJES, CURADO, MANO DE OBRA, HERRAMIENTAS Y MATERIALES.","ml.",13.59,0,0]
["UI-ALB-025","CASTILLO K1 Ó KS1 DE CONCRETO  F´c=200kg/cm2 DE 15X20 cm. DE SECCIÓN, ARMADO CON 4 VARILLAS DEL #3 F'y=4200kg/cm2 Y ESTRIBOS DEL #2, 6 @ 10, @ 20 cm. INCLUYE: CIMBRA COMÚN, DESCIMBRADO, CRUCE DE VARILLAS, ANCLAJE, ESCUADRAS, MANO DE OBRA, HERRAMIENTA Y MATERIALES.","ml.",10.8,0,0]
["UI-ALB-040","MURO DE 14 cm. DE ESPESOR, CON TABIQUE DE BARRO ROJO RECOCIDO DE 6X14X28 cm., ACABADO COMÚN, ASENTADO CON MORTERO CEM-ARENA 1:4. INCLUYE: NIVELADO, PLOMEADO, ANDAMIOS, ELEVACIONES Y TODO LO NECESARIO PARA SU CORRECTA ELABORACIÓN.","m²",16.190000000000001,0,0]
["UI-ALB-050","FIRME DE CONCRETO F`c=200 kg/cm2 DE 10 cm. DE ESPESOR CON MALLA ELECTROSOLDADA 6X6/10-10 REFORZADO, ACABADO RÚSTICO PARA RECIBIR LOSETA. INCLUYE: NIVELACIÓN Y COMPACTACIÓN, MATERIALES,CIMBRADO, COLADO, MANO DE OBRA, EQUIPO Y HERRAMIENTA.","m²",85.04,0,0]
["UI-ALB-055","PISO DE CONCRETO F'c=200 kg/cm2, DE 10 cm. DE ESPESOR, REFORZADA CON MALLA ELECTROSOLDADA DE 6X6/10-10, ACABADO FINO RAYADO CON BOCHA DE PELO. INCLUYE; COLADO EN SECCIONES, COMPACTACION Y PREPARACIÓN DE LA SUPERFICIE A COLAR, NIVELACIÓN, MAESTREADO, ACABADO CON VOLTEADOR, TRASLAPES DE MALLA DE 15 cm., CURADO DURANTE 7 DÍAS (3 VECES AL DÍA) COMO MÍNIMO.","m²",18.45,0,0]
["UI-ALB-061","CONSTRUCCIÓN DE ESTRADO DE 6.00 X 1.42 m. Y 30 cm. DE PERALTE, CON UN RODAPIE DE 15x40 cm., ARMADO CON 6 VARILLAS DE 3/8” Y ESTRIBOS DEL N°. 2 @17 cm.; PLANTILLA DE CONCRETO SIMPLE F'c=100 kg/cm2 DE 5 cm. DE ESPESOR, RELLENO CON MATERIAL DE BANCO COMPACTADO POR MEDIOS MANUALES, FIRME DE CONCRETO F'c=200 kg/cm2 DE 10 cm. DE ESPESOR, REFORZADO CON MALLA ELECTROSOLDADA 6X6/10-10, ACABADO RÚSTICO PARA RECIBIR LOSETA, ANCLADO A MURO CON CONECTOR DE VARILLA CORRUGADA 1/2\" @25cm., FORJADO DE NARIZ CON CIMBRA APARENTE DE 9.5X9 cm. CON ACABADO PULIDO, REFORZADO CON 1 VARILLA DE 3/8\".","pza.",1,0,0]
["UI-ALB-065","SEPARACIÓN ENTRE CASTILLOS-COLUMNAS-MUROS CON PLACA DE POLIESTIRENO DE 2.5 cm., CANAL DE LÁMINA CALIBRE 18, CON 2 TAQUETES DE EXPANSIÓN DE DIÁMETRO 1/4\"X3\" @ 50 cm. VERTICALES. INCLUYE: MANO DE OBRA, HERRAMIENTA, MATERIALES, Y TODO LO NECESARIO PARA SU CORRECTA EJECUCIÓN.","ml.",10.9,0,0]
["UI-ALB-070","APLANADO ACABADO FINO CON CEMENTO-ARENA PROP. 1:4 A PLOMO Y REGLA DE 2 A 2.5 cm. DE ESPESOR, PREPARACIÓN DE LA SUPERFICIE POR APLANAR (PICADO Y/O HUMEDECIDO DEPENDIENDO DE LA SUPERFICIE), CURADO Y DEJANDO PARTIR EL REPELLADO, ACABADO CON FLOTA O PLANA DE MADERA HASTA OBTENER TEXTURA UNIFORME, SIN OQUEDADES, RAYONES, PROTUBERANCIAS. INCLUYE: MATERIAL, MANO DE OBRA, ANDAMIOS, REMATES Y ARISTAS A REGLA, BOQUILLAS Y RECORTES DE APLANADO PARA ZOCLO.","m²",48.82,0,0]
["UI-ALB-071","APLANADO FINO EN MUROS DE 3 A 4 cm. DE ESPESOR, CON MEZCLA DE CEMENTO-ARENA 1:3 Y FIBRAS POLIMERICAS EN PROPORCIÒN 1 BOLSA POR 1 M3, REFORZADO CON MALLA ELECTROSOLDADA 6X6-10/10 FIJADA CON GRAPAS DE VARILLAS DEL No.2 Y/O TAQUETES EXPANSIVOS DE 2 1/2\"X3/16\"  @ 45 cm. A TRES BOLILLO, A PLOMO Y REGLA, SUPERFICIE CON TERMINADO UNIFORME, INCLUYE: ANDAMIOS A CUALQUIER ALTURA, PREPARACIÓN   DE  LA  SUPERFICIE   POR  APLANAR   (PICADO   Y/O HUMEDECIDO   DEPENDIENDO   DE  LA  SUPERFICIE),    CURADO  Y  DEJANDO  PARTIR  EL  REPELLADO, ACABADO CON FLOTA HASTA OBTENER TEXTURA UNIFORME, MATERIAL, MANO DE OBRA, ANDAMIOS, REMATES Y ARISTAS A REGLA, BOQUILLAS Y RECORTES DE APLANADO PARA ZOCLO.","m²",96.2,0,0]
["UI-ALB-076","SUMINISTRO Y COLOCACIÓN DE LOSETA CERAMICA ANTIDERRAPANTE, DE PRIMERA CALIDAD, MARCA INTERCERAMIC MODELO SAYULITA RIVIERA GREY DE 33X33 cm. O SIMILAR, ASENTADA CON ADHESIVO GRIS MCA. PORCELANITE-CEMENTO-ARENA 1:1/2:3, JUNTA DE 5 mm. INCLUYE: COLOCACIÓN DE JUNTA BACKER ROD (COLA DE RATA) EN TODO EL PERÍMETRO, TERMINADO CON SELLADOR DE POLIURETANO DURETAN, EMBOQUILLADO CON SELLADOR, COLOR A ELEGIR, CORTES RECTOS Y A 45º, REMATES, DESPERDICIOS, LIMPIEZA DEL ÁREA DE TRABAJO Y RETIRO DE SOBRANTES FUERA DE LA OBRA.","m²",92.95,0,0]
["UI-ALB-080","APLICACIÓN DE PINTURA 100% ACRILICA VINIMEX MCA. COMEX, SIMILAR O SUPERIOR, ACABADO MATE, BASE AGUA, EN MUROS, COLUMNAS, TRABES Y PLAFÓN. COLOR BLANCO OSTIÓN Y BLANCO AMANECER EN INTERIORES Y COLOR SIMILAR A EDIFICIOS EXISTENTES EN EXTERIOR, DENSIDAD DE 1.025 - 1.38 g/ml., SOLIDOS EN PESO 50% MINIMO, APLICADO SOBRE UNA CAPA DE SELLADOR, TRABAJO TERMINADO A DOS MANOS. INCLUYE:  PREPARACIÓN DE LA SUPERFICIE CON SELLADOR ENTINTABLE COLOR BLANCO MCA.COMEX, REBABEADO, BOQUILLAS, RESANES Y PLASTE NECESARIO, ELEVACIONES, TRAZO, MATERIAL, HERRAMIENTA, MANO DE OBRA Y LIMPIEZA DEL ÁREA DE TRABAJO.","m²",384.71,0,0]
["UI-ALB-081","SUMINISTRO Y APLICACIÓN DE PINTURA VINÍLICA VINIMEX, MCA. COMEX, SIMILAR O SUPERIOR, ACABADO SATINADO LAVABLE, EN ZOCLO DE CONCRETO CON ACABADO APARENTE O APLANADO, DE 10 cm. DE ESPESOR COLOR INDICADO EN OBRA. INCLUYE: TRAZO, BOQUILLAS, MATERIALES, EQUIPO, MANO DE OBRA Y LIMPIEZA DEL ÁREA DE TRABAJO.","ml.",90.47,0,0]
["UI-ALB-085","APLICACIÒN DE  2 MANOS DE PINTURA PROMAX ACABADO EPÓXICO MARCA SHERWIN WILLIAMS, SIMILAR O SUPERIOR, SOBRE SUPERFICIES METÁLICAS A DOS MANOS, APLICADA CON COMPRESOR. INCLUYE: LIMPIEZA DEL METAL PARA RETIRO DE GRASA, PREPARACIÓN DE LA SUPERFICIE, APLICACIÒN DE PRIMER ANTICORROSIVO, MATERIALES, MANO DE OBRA, EQUIPO, HERRAMIENTA Y LIMPIEZA DEL ÀREA DE TRABAJO.","m²",17.420000000000002,0,0]
["UI-ALB-090","SUMINISTRO Y COLOCACIÓN DE IMPERMEABILIZANTE PREFABRICADO EN LOSA DE AZOTEA, ELABORADO CON ASFALTO MODIFICADO APP DE 4.00 mm. DE ESPESOR, REFORZADO INTERNAMENTE CON UNA MEMBRANA DE REFUERZO DE POLIÉSTER 180 gr/m2. TERMINADO EN GRAVILLA MINERALIZADA COLOR ROJO.  INCLUYE: PREPARACIÓN DE LA SUPERFICIE: LIMPIEZA, SELLADO DE POROS, CALAFATEO DE GRIETAS Y CHAFLANES CON CEMENTO PLÁSTICO; PRIMARIO, MATERIALES, ELEVACIÓN DE MATERIALES HASTA EL LUGAR DE SU UTILIZACIÓN,  REMATE DE TRASLAPES, RETOQUE DE UNIONES Y PERIFERIA, TRASLAPES MÍNIMOS DE 10 cm., EQUIPO Y GAS BUTANO, MANO DE OBRA ESPECIALIZADA, ACARREOS DENTRO Y FUERA DE OBRA, LIMPIEZA DEL ÁREA DE TRABAJO, GARANTÍA POR ESCRITO DE 5 AÑOS O SUPERIOR POR PARTE DEL FABRICANTE EN MATERIAL Y MANO DE OBRA.","m²",135.43,0,0]
["UI-ALB-100","RESTAURACIÓN DE GRIETAS O FISURAS ESTRUCTURALES EN MURO, APLICANDO EL SISTEMA UNECRETO EPOXI ESTRUCTURAL DE IMPERQUIMIA. INCLUYE: LIMPIEZA DE LA SUPERFICIE, LIMPIEZA DE GRIETA CON AIRE A PRESIÓN, BARRENOS DE 1/4\" A 3/8\" A CADA 15 Ò 20 CM. SOBRE LA GRIETA, COLOCACIÓN DE PUERTO DE INYECCIÓN UREFOAM INYECTOR BANG EN CADA BARRENO, LIMPIEZA DEL INTERIOR DE LOS PUERTOS UNA VEZ COLOCADOS CON AIRE A PRESIÓN, APLICACIÓN DE RESANADOR EPÓXIDO EN PASTA GUARDQUIM EPOXI RESANADOR TIXOTROPICO SOBRE LA GRIETA, INYECCIÓN DE UNECRETO EPOXI ESTRUCTURAL CON PISTOLA DE CALAFATEO O EQUIPO NEUMÁTICO DE ACUERDO A LAS ESPECIFICACIONES DEL PRODUCTO. INCLUYE: MATERIAL, MANO DE OBRA, HERRAMIENTA Y EQUIPO.","ml.",35,0,0]
[null,"Total  CAPÍTULO 4: ALBAÑILERIA Y ACABADOS",null,null,null,{"$f":"SUM(F167:F182)","v":0}]
["CAPÍTULO 5","HERRERÍA"]
["UI-HYC-001","SUMINISTRO Y COLOCACIÒN DE PUERTA DE ACERO PORCELANIZADO SOBRE LAMINA CAL. 24 DE 1.00 X 2.47 m., VER ESPECIFICACIONES DE PLANO, INCLUYE; PERFIL TUBULAR CUADRADO GALVANIZADO CALIBRE 20 DE 1 1/4\" X 3/4\", PLACA DE CARTÓN EN FORMA DE PANAL DE 1 1/4\" (HONEY COMB), ADHESIVO DE CONTACTO DE PRIMERA CALIDAD, MOLDURA PERIMETRAL DE ALUMINIO ANODIZADO NATURAL DE 1 1/2\" CON CORTES A 45°, BISAGRAS DE ACERO INOXIDABLE, CHAPA PHILLIPS 550, SIMILAR O SUPERIOR, Y TODO LO NECESARIO PARA SU BUEN FUNCIONAMIENTO.","pza.",2,{"$f":"+E84","v":0},{"$f":"ROUND(D185*E185,2)","v":0}]
["UI-HYC-020","SUMINISTRO Y COLOCACIÓN DE VENTANA DE ALUMINIO ANODIZADO NATURAL DE 3\" LÍNEA PESADA, SERÁ CORREDIZA, DE PROYECCIÓN O DE TIPO GUILLOTINA SEGÚN DETALLES Y ESPECIFICACIONES DEL PLANO, CON CRISTAL FILTRASOL DE 6MM EN CANCELERÍA EXTERIOR Y CRISTAL CLARO DE 6MM O ACRÍLICO ESMERILADO BLANCO DE 6MM EN CANCELERÍA INTERIOR, FIJADA CON TORNILLOS, TAQUETES Y REMACHES PARA FIJAR LAS HOJAS, SELLADO CON SILICÓN Y SELLADOR ACRÍLICO EN MARCOS. INCLUYE: JALADERAS, SEGUROS DE EMBUTIDO, PASADORES, BISAGRAS, CARRETILLAS, EMPAQUE DE VINIL, FELPA, MANO DE OBRA, EQUIPO, HERRAMIENTA Y TODO LO NECESARIO PARA SU BUEN FUNCIONAMIENTO.","m²",10.199999999999999,{"$f":"+E85","v":0},0]
["UI-HYC-030","PROTECCIÓN PARA VENTANA, A BASE DE ÀNGULO ESTRUCTURAL DE 3/4\"X1/8\" PARA MARCO Y CUADRADOS DE 1/2\" A CADA 15 CMS EN AMBOS SENTIDOS EN TRES BOLILLO, SOLDADOS AL MARCO, FIJADO A VARILLA EXISTENTE, INCLUYE; RESANE, MATERIALES, ACARREOS, CORTES, DESPERDICIOS, SOLDADURA, FIJACIÓN, APLICACIÓN DE PINTURA DE ESMALTE, MANO DE OBRA, EQUIPO Y HERRAMIENTA.","m²",10.199999999999999,{"$f":"+E86","v":0},0]
["UI-HYC-035","SUMINISTRO Y COLOCACIÓN DE PROTECCIÒN PARA PUERTA ABATIBLE DE 1.00 X2.47 m. CADA UNA, A BASE DE ANGULO DE ACERO DE 1 1/2X1/8\" PARA CONTRAMARCO Y MARCO DE PTR DE 1X1\" CALIBRE 14, BARROTES DE CUADRADO DE 1/2\"; INCLUYE: BISAGRAS DE BARRIL DE 5/8\", CERRADURA DE SOBREPONER MARCA PHILIPS MOD. 725, SIMILAR O SUPERIOR, HABILITADO, CORTE, SOLDADURA, PROMAX PRIMARIO EPÓXICO MARCA SHERWIN WILLIAMS, 2 MANOS DE PINTURA PROMAX ACABADO EPÓXICO MARCA SHERWIN WILLIAMS, SIMILAR O SUPERIOR, COLOR INDICADO EN OBRA, LIMPIEZA, MANO DE OBRA, EQUIPO Y HERRAMIENTA.","pza.",2,{"$f":"+E87","v":0},0]
[null,"Total  CAPÍTULO 5: HERRERÍA",null,null,null,{"$f":"SUM(F185:F188)","v":0}]
["CAPÍTULO 6","INSTALACIONES"]
[null,"B) INSTALACIÒN ELÈCTRICA E INTERNET"]
["UI-INSE-001","SALIDA PARA LUMINARIA, CONTACTO, VENTILADOR, EXTRACTOR, APAGADOR Y TIMBRE, CON TUBERIA CONDUIT DE PVC TIPO PESADO DE 13, 19 Y 25 mm., CON UN DESARROLLO DE 6.0 m., CHALUPA Y CAJA REGISTRO DE PVC REFORZADO DE 13 Y 19 mm., INCLUYE: CONECTOR Y CONTRA, RANURAS Y RESANES EN MUROS, GUÍAS DE ACERO GALVANIZADO C.14, OMEGA DE VARILLA DE 3/8\" PARA VENTILADOR Y TODO LO NECESARIO PARA SU CORRECTA EJECUCIÓN (VER PLANO ELÉCTRICO).","sal.",7,{"$f":"+E91","v":0},{"$f":"ROUND(D192*E192,2)","v":0}]
["UI-INSE-002","SALIDA PARA CONTACTO EN PISO A 10 cm. DEL N.P.T., CON TUBERIA CONDUIT DE PVC TIPO PESADO DE 19 Y 25 mm., CON UN DESARROLLO DE 6.0 m., CONDULET SERIE RECTANGULAR TIPO FSS DE 19mm. (3/4”). INCLUYE:  CONECTOR Y CONTRA, GUÍAS DE ACERO GALVANIZADO C.14, Y TODO LO NECESARIO PARA SU CORRECTA EJECUCIÓN.","sal.",12,{"$f":"+E92","v":0},0]
["UI-INSE-005","SALIDA PARA AIRE ACONDICIONADO TIPO MINI-SPLIT CON TUBERIA CONDUIT DE PVC TIPO PESADO DE 19 Y 25 mm., CON UN DESARROLLO DE 12.0 m. HASTA LA BASE DE CONCRETO. INCLUYE: CONECTOR CONDUIT DE PVC, CAJA REGISTRO SERIE RECTANGULAR FSCT-2 DE 3/4\" CON TAPA CIEGA DS-100 A PRUEBA DE LLUVIA (UNA POR DOS COMPRESORES), CONECTOR GLANDULA, TRAZO, EXCAVACIÓN, CAMA DE ARENA DE 10 cm., RELLENO COMPACTADO Y TODO LO NECESARIO PARA SU CORRECTA EJECUCIÓN. (VER PLANO ELÉCTRICO).","sal.",2,{"$f":"+E93","v":0},0]
["UI-IEI-010","SALIDA PARA RED DE INTERNET, TELÉFONO, SISTEMA DE ALARMA, CÁMARA Y CAÑON PROYECTOR, POR MURO Y PISO, CON TUBERÍA CONDUIT DE PVC TIPO PESADO DE 13, 19 Y 25 mm., CON UN DESARROLLO DE 6 m., CHALUPA DE PVC DE 3/4\". INCLUYE: RANURAS Y RESANES Y TODO LO NECESARIO PARA SU CORRECTA EJECUCIÓN, (VER PLANO ELÉCTRICO).","sal.",6,0,0]
["UI-INSE-011","SALIDA PARA RED DE INTERNET POR PISO, CON TUBERÍA CONDUIT DE PVC TIPO PESADO DE 19 Y 25 mm., CON UN DESARROLLO DE 4 m., CONDULET SERIE RECTANGULAR TIPO FSS DE 19mm. (3/4”). INCLUYE:  CONECTOR Y CONTRA, GUÍAS DE ACERO GALVANIZADO C.14, Y TODO LO NECESARIO PARA SU CORRECTA EJECUCIÓN.","sal.",15,{"$f":"+E95","v":0},0]
["UI-IEI-015","SUMINISTRO Y COLOCACIÓN DE LUMINARIA DE SOBREPONER DE LED, MODELO MONTISI V DE 2X16 w., LUZ BLANCA, BASE G5 TECNOLITE (32LTLLED2282V40B) O SIMILAR. INCLUYE: CABLEADO AL TABLERO CON CONDUCTOR CALIBRE No. 12 AWG. TIPO THW. MARCA CONDUMEX Y AL APAGADOR, CONEXIONES, MISCELÁNEOS, PRUEBAS Y TODO LO NECESARIO PARA SU BUEN FUNCIONAMIENTO.","pza.",12,0,0]
["UI-IEI-023","APAGADOR SENCILLO BTICINO O LEVITON, DE 16A, 125V, INCLUYE: SUMINISTRO E INSTALACIÓN, CONEXIONES, MISCELÁNEOS, PRUEBAS Y TODO LO NECESARIO PARA SU BUEN FUNCIONAMIENTO.","pza.",2,0,0]
["UI-IEI-025","SUMINISTRO Y COLOCACIÓN DE CONTACTOS DOBLES TIPO DÚPLEX POLARIZADOS, CON POLO DE TIERRA FISICA A 127 VOLTS, MARCA BITICINO MODELO MODUS O SIMILA. INCLUYE: TAPA REALZADA, CABLEADO CONDUCTOR CALIBRE No. 10 AWG Y DESNUDO No. 12 TIPO THW. MARCA CONDUMEX, CONEXIONES, PRUEBAS Y MISCELÁNEOS.","pza.",5,0,0]
["UI-IEI-026","SUMINISTRO Y COLOCACIÓN DE CONTACTO DÚPLEX POLARIZADOS A 20 AMPERES, CON POLO DE TIERRA FÍSICA A 127 VOLTS, MARCA LEVITÓN MODELO S01-CR20-IS O SIMILAR. INCLUYE: TAPA REALZADA, CABLEADO, CONDUCTOR CALIBRE NO. 10 AWG. TIPO THW. MARCA CONDUMEX, CONEXIONES, PRUEBAS Y MISCELÁNEOS.","pza.",12,0,0]
["UI-IEI-032","SUMINISTRO Y COLOCACIÓN DE TAPAS CON SALIDA RJ45 DE DOS PUERTOS O SIMILAR, MARCA STEREN PARA SALIDAS DE EQUIPO DE CÓMPUTO. INCLUYE: CABLE UTP CATEGORIAS 6 MARCA CONDUMEX O AVAYA, DE LA SALIDA DE RED AL CONCENTRADOR DEJANDO PUNTAS DE 2.50 m., MANO DE OBRA Y TODO LO NECESARIO PARA SU CORRECTA INSTALACIÓN.\n","pza.",15,0,0]
["UI-IEI-035","SUMINISTRO Y COLOCACION DE TABLERO DE DISTRIBUCIÓN PARA ALUMBRADO Y FUERZA, NQOD244AB12F, PARA  24 CIRCUITOS 3 FASES 4 HILOS MCA. SQUARED, CON INTERRUPTOR TERMOMAGNETICO  3X100 AMP. CON 1 TUBO DE PVC DE 50MM Y 2 TUBOS PVC DE 25 mm., CONECTADOS A REGISTRO PRINCIPAL, INCLUYE: CONECTORES, INSTALACIONES, AMACIZADO, PRUEBAS, MATERIAL, MANO DE OBRA Y TODO LO NECESARIO P/ SU BUEN FUNCIONAMIENTO.","pza.",1,null,0]
["UI-IEI-047","SUMINISTRO Y COLOCACIÓN DE INTERRUPTOR TERMOMAGNETICO DE 20 AMPERES INCLUYE: INSTALACIÓN, CONEXIONES Y PRUEBAS.","pza.",1,{"$f":"+E101","v":0},0]
["UI-IEI-050","SUMINISTRO Y COLOCACIÓN DE INTERRUPTOR TERMOMAGNÉTICO DE 2X30 AMPERES INCLUYE: INSTALACIÓN, CONEXIONES Y PRUEBAS.","pza.",2,{"$f":"+E102","v":0},0]
["UI-IEI-069","SUMINISTRO E INSTALACIÓN DE UNIDAD DE AIRE ACONDICIONADO TIPO MINISPLIT, MARCA YORK MOD. YHKE36ZJ6AMBORX CAP. 36,000 btu/hr, (3.0 Ton.), COMPRESOR FIJO R410A, PARA OPERAR A 220 VOLTS, 2 FASES. INCLUYE: CENTRO DE CARGA Q02 PARA INTEMPERIE, PASTILLA TERMOMAGNÉTICA DE 2X40 AMPERES, CABLEADO CALIBRE 10 AWG, PRUEBAS, MATERIALES, MANO DE OBRA, HERRAMIENTA, EQUIPO, ANDAMIOS, ACARREOS Y ELEVACIONES.","pza.",2,{"$f":"+E103","v":0},0]
["UI-IEI-076","SUMINISTRO Y COLOCACIÓN DE SUPRESOR DE TRANSITORIOS TVS2HWA50X SQUARE D SURGELOGIC HWA 208 Y / 120 VCA   3F 4H 50 KA. INCLUYE: MATERIAL, MANO DE OBRA Y TODO LO NECESARIO PARA SU CORRECTA INSTALACIÓN.","pza.",1,{"$f":"+E104","v":0},0]
["UI-IEI-081","SUMINISTRO Y TENDIDO DE TUBERIA TIPO PAD DE 4\" (100mm) DE DIÁMETRO LISO RD 17, INCLUYE: UNIÓN A REGISTRO, MATERIALES, MANO DE OBRA, HERRAMIENTA Y TODO LO NECESARIO PARA SU CORRECTA EJECUCIÓN.","ml.",100,0,0]
["UI-IEL-090","REGISTRO ELÉCTRICO INTERIOR DE 60 X 60 cm. DE MEDIDAS INTERIORES Y 80cm. DE PROFUNDIDAD, A BASE DE MUROS DE TABICÓN DE CONCRETO DE 10X14X28cm.  ASENTADO CON MEZCLA DE CEMENTO ARENA EN PROPORCIÓN DE 1:5, DE 1cm. DE ESPESOR, APLANADO ACABADO PULIDO EN INTERIOR, PISO CON FILTRO DE GRAVA DE 10 cm. DE ESPESOR; TAPA EXPLORABLE DE CONCRETO DE 6 cm.DE ESPESOR, DE CONCRETO HECHO EN OBRA DE F'c=250 kg/cm² A BASE DE MARCO Y CONTRAMARCO PREFABRICADO DE ÁNGULO DE FIERRO DE 1/8 X 1”   REFORZADA CON VARILLA DE 3/8” A CADA 17 cm., ACABADO DE ACUERDO AL TIPO DE LOSETA , INCLUYE: TRAZO, NIVELACIÓN, EXCAVACIÓN, TODOS LOS MATERIALES NECESARIOS, ACARREOS EN CARRETILLA A 10ml., DESPERDICIOS, LIMPIEZA, MANO DE OBRA, EQUIPO Y HERRAMIENTA.","pza.",1,0,0]
["UI-IEI-091","REGISTRO ELÉCTRICO EXTERIOR TIPO BANCA DE 100 X 100 cm. DE MEDIDAS INTERIORES Y 100 cm. DE PROFUNDIDAD, A BASE DE MUROS DE TABICÓN DE 10X14X28 cm.  ASENTADO CON MEZCLA DE CEMENTO ARENA EN PROPORCIÓN DE 1:5, DE 1 cm. DE ESPESOR, APLANADO ACABADO PULIDO EN INTERIOR Y ACABADO FINO EN EXTERIOR, PISO CON FILTRO DE GRABA DE 3/4” DE 10 cm. DE ESPESOR, TAPA EXPLORABLE DE CONCRETO DE 8 cm. DE ESPESOR REFORZADA CON VARILLA DEL 3/8\" A CADA 20 cm. EN AMBOS SENTIDOS, COLADA CON CONCRETO HECHO EN OBRA DE F'c=250 kg/cm², INCLUYE: TRAZO, NIVELACIÓN, EXCAVACIÓN, TODOS LOS MATERIALES NECESARIOS, ACARREOS EN CARRETILLA A 10ml., DESPERDICIOS, LIMPIEZA, MANO DE OBRA, EQUIPO Y HERRAMIENTA.","pza.",3,0,0]
["UI-IEI-092","REGISTRO ELÉCTRICO EXTERIOR TIPO BANCA DE 60 X 60 cm. DE MEDIDAS INTERIORES Y 80 cm. DE PROFUNDIDAD, A BASE DE MUROS DE TABICÓN DE CONCRETO DE 10X14X28 cm.  ASENTADO CON MEZCLA DE CEMENTO ARENA EN PROPORCIÓN DE 1:5, DE 1 cm. DE ESPESOR, APLANADO ACABADO PULIDO EN INTERIOR Y ACABADO FINO EN EXTERIOR, PISO CON FILTRO DE GRAVA DE 3/4\"  DE 10 cm. DE ESPESOR; TAPA EXPLORABLE DE CONCRETO DE 8 cm. DE ESPESOR REFORZADA CON VARILLA DE 3/8” A CADA 20 cm. EN AMBOS SENTIDOS, COLADA CON CONCRETO HECHO EN OBRA DE F'c=250 kg/cm², INCLUYE: TRAZO, NIVELACIÓN, EXCAVACIÓN, TODOS LOS MATERIALES NECESARIOS, ACARREOS EN CARRETILLA A 10 ml., DESPERDICIOS, LIMPIEZA, MANO DE OBRA, EQUIPO Y HERRAMIENTA.","pza.",1,0,0]
["UI-IEI-093","REGISTRO DE RED INTERIOR DE 60 X 60 cm. DE MEDIDAS INTERIORES Y 80cm. DE PROFUNDIDAD, A BASE DE MUROS DE TABICÓN DE CONCRETO DE 10X14X28cm.  ASENTADO CON MEZCLA DE CEMENTO ARENA EN PROPORCIÓN DE 1:5, DE 1cm. DE ESPESOR, APLANADO ACABADO PULIDO EN INTERIOR, PISO DE CONCRETO F'C=150 kg/cm² DE 10 cm. DE ESPESOR; TAPA EXPLORABLE DE CONCRETO DE 6 cm.DE ESPESOR, DE CONCRETO HECHO EN OBRA DE F'C=250 kg/cm² A BASE DE MARCO Y CONTRAMARCO PREFABRICADO DE ÁNGULO DE FIERRO DE 1/8 X 1”   REFORZADA CON VARILLA DE 3/8” A CADA 17 cm., ACABADO DE ACUERDO AL TIPO DE LOSETA , INCLUYE: TRAZO, NIVELACIÓN, EXCAVACIÓN, TODOS LOS MATERIALES NECESARIOS, ACARREOS EN CARRETILLA A 10ml., DESPERDICIOS, LIMPIEZA, MANO DE OBRA, EQUIPO Y HERRAMIENTA.","pza.",1,0,0]
["UI-IEI-094","REGISTRO DE RED EXTERIOR TIPO BANCA DE 60 X 60cm. DE MEDIDAS INTERIORES Y 80 cm. DE PROFUNDIDAD, A BASE DE MUROS DE TABICÓN DE CONCRETO DE 10X14X28 cm.  ASENTADO CON MEZCLA DE CEMENTO ARENA EN PROPORCIÓN DE 1:5, DE 1 cm. DE ESPESOR, APLANADO ACABADO PULIDO EN INTERIOR Y ACABADO FINO EN EXTERIOR, PISO DE CONCRETO F'c=150 kg/cm² DE 10 cm. DE ESPESOR; TAPA EXPLORABLE DE CONCRETO DE 6 cm. DE ESPESOR REFORZADA CON VARILLAS DE 3/8” A CADA 17 cm. EN AMBOS SENTIDOS, DE CONCRETO HECHO EN OBRA DE F'c=250 kg/cm², INCLUYE: TRAZO, NIVELACIÓN, EXCAVACIÓN, TODOS LOS MATERIALES NECESARIOS, ACARREOS EN CARRETILLA A 10 ml., DESPERDICIOS, LIMPIEZA, MANO DE OBRA, EQUIPO Y HERRAMIENTA.","pza.",3,0,0]
["UI-IEI-100","ENCOFRADO PARA TUBERÍA SUBTERRANEA ELÉCTRICA O DE RED DE 50 cm. DE ANCHO Y 30 cm. DE ALTURA, CON CONCRETO HIDRÁULICO F´c=150 kg/cm². INCLUYE: TRAZO, EXCAVACIÓN DE CEPA DE 50X80 cm., CAMA DE ARENA DE 10 cm. DE ESPESOR PARA TENDIDO DE TUBERIA, SEPARADORES DE PVC PARA DUCTOS SUBTERRANEOS A CADA 1.50 ml.; DE ACUERDO AL DIAMETRO DE LA TUBERÍA, RELLENO COMPACTADO CON BAILARINA PARA CUBRIR EL ENCOFRADO, MATERIAL, MANO DE OBRA, EQUIPO, HERRAMIENTA Y TODO LO NECESARIO PARA SU CORRECTA EJECUCIÓN","ml.",40,0,0]
[null,"B) INSTALACIÒN ELÈCTRICA E INTERNET",null,null,null,{"$f":"SUM(F192:F213)","v":0}]
[null,"Total  CAPÍTULO 6: INSTALACIONES",null,null,null,{"$f":"+F214","v":0}]
["CAPÍTULO 7","OBRA EXTERIOR"]
["UI-OEX-007","MURETE DE ENRASE EN CIMENTACIÒN CON TABICÒN PESADO DE 10X14X28 cm., ASENTADO CON MORTERO CEMENTO-ARENA 1:4 DE 14 cm. DE ESPESOR, TRABAJO TERMINADO.","m²",11.84,{"$f":"+E115","v":0},{"$f":"ROUND(D217*E217,2)","v":0}]
["UI-OEX-011","CASTILLO K0  DE 15X15 cm. DE CONCRETO HECHO EN OBRA DE F'c=200 kg/cm², ACABADO COMÚN, ARMADO CON 4 VARILLAS DE 3/8\" Y ESTRIBOS DEL No.2 A CADA 20 cm., INCLUYE: MATERIALES, ACARREOS, CORTES, DESPERDICIOS, ARMADO, TRASLAPES, AMARRES, CIMBRADO, COLDADO, DESCIMBRADO, MANO DE OBRA, EQUIPO Y HERRAMIENTA.","ml.",7.7,{"$f":"+E116","v":0},{"$f":"ROUND(D218*E218,2)","v":0}]
["UI-OEX-017","DENTELLÒN PARA BANQUETA DE 30X15 cm. DE CONCRETO HECHO EN OBRA DE F'c=200 kg/cm², ARMADA CON EST DEL No. 2 A CADA 25 CM, 4 VARILLAS DE 3/8\" Y BARBAS DE ACERO DEL No. 2 DE 63 cm. DE DESARROLLO. INCLUYE: FORJADO DE NARIZ CON CIMBRA APARENTE, MATERIALES, ACARREOS, CIMBRADO, COLADO, MANO DE OBRA, EQUIPO Y HERRAMIENTA.","ml.",14,{"$f":"+E118","v":0},{"$f":"ROUND(D219*E219,2)","v":0}]
["UI-OEX-021","RELLENO CON MATERIAL DE BANCO, COMPACTADO CON PISÓN DE MANO EN CAPAS NO MAYORES DE 20 cm. INCLUYE: SUMINISTRO DE TODOS LOS MATERIALES, ADICIÓN DEL AGUA NECESARIA, MANO DE OBRA, EQUIPO Y HERRAMIENTA.","M3",8.86,{"$f":"+E119","v":0},{"$f":"ROUND(D220*E220,2)","v":0}]
["UI-OEX-025","BANQUETA DE 10 cm. DE ESPESOR DE CONCRETO DE F'c=150 kg/cm², T.M.A. 3/4\" ACABADO ESCOBILLADO, INCLUYE: CIMBRADO, COLADO, JUNTAS CON VOLTEADOR A CADA 1.50 ml. CURADO, DESCIMBRADO, MATERIALES, MANO DE OBRA, EQUIPO Y HERRAMIENTA.","m²",16.89,{"$f":"+E120","v":0},{"$f":"ROUND(D221*E221,2)","v":0}]
[null,"Total  CAPÍTULO 7: OBRA EXTERIOR",null,null,null,{"$f":"SUM(F217:F221)","v":0}]
[null,"TOTAL SALA DE AUTOACCESO",null,null,null,{"$f":"+F222+F215+F189+F183+F165+F158+F142","v":0}]
[]
[null,null,null,null,"SUBTOTAL",{"$f":"+F223+F122","v":0}]
[null,null,null,null,"I.V.A.",{"$f":"+F225*0.16","v":0}]
[null,null,null,null,"TOTAL",{"$f":"+F225+F226","v":0}]
["(MONTO CON LETRA)"]